Workbook

Sheet Introduktion
B5: Udgiver: | C5: SEGES Innovation P/S
C6: Formålet med regnearket er at beregne rentabiliteten ved et byggeprojekt af en ny svineejendom baseret på langsigtede realistiske forudsætninger.
B8: Udgivelsesdato: | C8: 2022-12-20
B9: Forfatter: | C9: Michael Groes Christiansen
B10: Version: | C10: 1.05
B11: Datagrundlag og opdateringsfrekvens:
B12: Dokument: | C12: Sådan bruge du investeringsoversigten
B13: Ansvar: | C13: Se vilkår

Sheet Vejledning
A8: Spørgsmål til regnearket kan rettes til Michael Groes Christiansen, tlf. 5135 9333, e-mail: | H8: mgc@seges.dk
A11: Vejledning til rentabilitetsberegning – version 1.05
A12: Formålet med regnearket er at beregne rentabiliteten ved et byggeprojekt af en ny svineejendom baseret på langsigtede realistiske forudsætninger.
A13: Til dette formål forsøger SEGES Innovation at stille fælles mellem-langsigtede prognoser for smågrisepriser og danske afregningspriser til rådighed.
A14: Disse prognoser er baseret på forventninger til fremtiden, der som oftest er baseret på, hvordan det historisk har været at sælge smågrise eller få rentablitet i dansk svineproduktion for en gennemsnitsproducent.
A15: Prognosen på mellenlang sigt er p.t. 2,00 kr./FEsv for indkøbt slagtesvinefoder og en gennnemsnitlig afregningspris på ca. 12,9 kr./kg, hvoraf basisnotering udgør de 11,5 kr./kg.
A16: Afregningspriser og foderpriser følges oftest ad. Besætningens egen foderpris kan være lavere/højere men bør sættes i forhold til den langsigtede foderprisprognose.
A17: Tillæg/fradrag pr. smågris i forhold til beregnet smågrisenotering sker på eget ansvar. Tillæg på smågrise kan skyldes undenlandsk efterspørgsel efter smågrise.
A18: SEGES Innovation, forventer at standardtillæg i Danmark pr. smågris er cirka 10 kr./smågris i fremtidige kalkuler, men afhænger af kvalitet og mængder.
A20: Programmet kan beregne
A21: En investeringsafkastningsgrad (AG).
A22: EVA (økonomisk værdi tilføjet) = AG-WACC.
A23: WACC er engelsk for en vægtet kalkulationsrente (læs senere i vejledning).
A24: Investeringens tilbagebetalingstid i år ekskl. besætningsværdien. Besætningsværdien betragtes som et kort aktiv, der til enhver tid kan elimeres (dog med noget tab).
A25: Projektets kapitalværdi (kun positiv hvis AG > WACC), en tilbagediskontering af pengestrøm med WACC.
A26: Nulpunktsnotering og sikkersmargin i forhold til langtidsprognosen men kun i arket Investerings kalkule med makro
A27: Resultat pr. gris.
A29: Eksempel på hvordan WACC beregnes: FINANSIERINGSANDELE OG RENTESATSER
A30: FINANSIERINGSKILDE: | B30: ANDELE | C30: AKTUEL RENTE INKL. ADM. OMK.
A31: Realkredit Fast | B31: 0.1 | C31: =5+0.6 -> 5.6
A32: Realkredit Variabel | B32: 0.5 | C32: =3.25+0.6 -> 3.85
A33: Bank | B33: 0.3 | C33: =7+0.6 -> 7.6
A34: Vækstfond ea. | B34: 0 | C34: 9.25
A35: Egenkapital | B35: 0.1 | C35: 9.75
A36: WACC | B36: =SUM(B31:B35) -> 1 | C36: =SUMPRODUCT(B31:B35,C31:C35) -> 5.74
A37: WACC uden egenkapitalforretningskrav | C37: =C36-B35*C35 -> 4.765
A39: Hvis WACC uden egenkapital bruges, bliver renteomkostninger lavere.
A40: Egenkapitalens forretning er så: EVA/(egenkapital i % af investeret kapital).
A41: En EVA på 1 % med 10 % egenkapitalfinansiering, svarer til 10 % i egenkapital forretning.
A43: Vejledning til regnearket
A45: Forudsætninger indlægges i farvede celler
A46: I gule celler kan der indlægges egne værdier
A48: Input til langsigtet prognose.
A49: Anbefalet prrognose prisniveau på mellemlang sigt fra SEGES er 2 kr. FEsv/slagtegrisefoder og 11,5 kr./kg i notering
A51: Programmet funktionalitet er bedst med makro slået til
A52: Hvis programmet afvikles uden makro, er målsøgning nøjagtig nulpunktsnotering sat ud af kraft.
A53: Der er tre driftsgrene: søer, smågrise og slagtesvin.
A55: Produktivitet og investeringsomfang
A56: Det forudsættes som udgangspunkt at anlægget vil have en produktivitet på niveau med
A57: de 33 % bedste svinebedrifter.
A58: Når programmet åbnes er årssøer samt alle smågrise- og slagtesvinestipladser sat til nul.
A59: De indlagte stipladspriser er for cirka 1.200 søer, cirka 6.000 smågrisestipladser og 5.000 slagtesvinepladser.
A60: Oplyste antal stiplads bruges til at beregne produktionsomfang og er pr. årsso eller til indsatte grise.
A61: Ekstra stipladser i form af sygestier eller bufferstier skal derfor ikke indlægges, men de skal inkluderes i stipladsprisen.
A62: Stipladspriser er for et funktionsdygtigt anlæg uden miljøteknologi. Programmets stipladspriser kan overskrives med egne.
A63: Miljøteknologi investering pr. stiplads indlægges særskilt.
A64: Der indlægges en del produktivitetsoplysninger i den indledende fase om foderforbrug samt forventet salgsvægt.
A65: Priser for grise op til 40 kg findes automatisk af programmet, og er således fra beregnet smågrisenotering ved given notering og foderpris på landsplan.
A67: Værdier og input kan også overskrives i rentablitetskalkulens gule celler
A68: Bruger er således først færdig, når gule celler i denne del af programmet er gennemgået for egne justeringer.
A69: Først når de cirka 2 sider/driftgren er gennemgået, bør nulpunktnotering findes via makroknap.
A71: Tillæg/fradrag til smågrisepris(er). Korrektion for mængde- og kvalitetstillæg.
A72: Transportpriser
A73: Egne Foderpriser. Forventede gennemsnitlige foderpriser over investeringens levetid set i forhold til langtidsprognosens priser.
A74: Timeløn. Forventet timeløn til ansatte eller minutpris ved smågrise og slagtesvin.
A75: Tidsforbrug. Antal time pr. årsso samt antal minutter pr. smågris og pr. slagtesvin.
A76: Hvis gyllens nettoværdi er positiv skrives enhedsværdien/ton med negativt fortegn.
A77: Disse faktorer er de vigtigste at tage stilling til, men de øvrige faktorer bør også gennemgås og tilrettes.
A79: Kontante kapacitetsomkostninger
A80: Generelt er det forudsat, at de kontante kapacitetsomkostninger vil ligge
A81: på niveau med de 33 % bedste med hensyn til kapacitetsomkostninger i Danmark.
A83: Afskrivninger er udspecificeres på bygninger/inventar samt miljøteknologi samt diverse, som dækker renteomkostning under byggerifasen, ind- afkøringstab samt miljøtilladelse.
A86: Vigtigt: Alle levetider skal være angivet i halve eller hele år.
A87: Afskrivninger på inventar etc.: Afrundes med loft til heltal i forhold til bygningens levetid. Hvis bygning holder 25 år, inventar kun 10 år, skal der investeres 3 gange i inventar ink. start investering.
A88: Alle reinvesteringer, som foretages mere end 5 gange set i forhold til bygningens levetid (eksemplevis noget miljøteknologi), skal tages som driftsomkostning og ikke som investering.
A89: Tilskud fratrækkes afskrivninger og fordeles på bygningens levetid. Det vides eksemplevis ikke, om der er tilskud om 13 år, hvis en en mlijøteknologi skal erstattes til den tid.
A91: Renteomkostninger: Investeret kapital forudsættes afdraget så hurligt som muligt i beregninger via pengestrømmen før afskrivninger og renteomkostninger (EBID) sat i forhold til restgæld. Renteomkostningen er dynamisk, det vil sige, at den er baseret på pengestrømsanalyse i projektets levetid.
A93: Ordinært resultat og resultat per enhed
A94: Hvis investeringen er lønsom er ordinært resultat og resultat ens.
A95: Der er kun forskel på ordinært resultat og resultat, hvis investeringen ikke er lønsom ved en givent niveau, fx ved lav notering.
A96: Årsagen er, at afskrivninger, medtaget i rentabilitetskalkulen, reelt ikke er afdraget til investorer.
A97: Derfor indlægges der en ekstraordinær renteomkostning, baseret på at ikke-afdragne afskrivninger forrrentes 5 år ekstra *0,5 * WACC som ikke fremgår af cashflow opstilling.
A99: Rentabilitet
A100: Alle resultater er før skat.
A102: Beregningsmæssige forhold
A103: Alle berenginger er før skat. Der gøres opmærksom på, at der ikke er indlagt hverken prisstigninger, effektivitetsstigninger,
A104: scrapværdi eller skat. Der kan argumenteres for, at input-faktorer, fx arbejdsløn, vil stige
A105: med mere end inflationen over tid, mens der ikke er belæg for at afregningsprisen over tid
A106: har udvist nogen stigende trend, eller vil gøre det i fremtiden. Dette hænger sammen med, at
A107: der historisk har været en stigende effektivitet i svineproduktionen. Det er oplagt at forvente,
A108: at eventuelle effektivitetsforbedringer i svineproduktionen går til at betale for stigende priser
A109: på input-faktorerne. Der er ikke medtaget nogen scrapværdi, da det forventes, at stald og
A110: inventar vil være værdiløse ved investeringsperiodens afslutning.
A111: Der er ikke medtaget eventuelle omkostninger til nedrivning af staldbygninger.
A112: Der er ikke taget hensyn til virksomhedsskat.

Sheet Investerings kalkule m. makro
C2: Rentabilitetsanalyser svin ved investeringer i stalde | F2: For: | G2: SEGES
C4: Navigationslink række visninger | D4: Prisprognose på mellemlang sigt | F4: So kalkule | G4: Smågrise kalkule | H4: Slagtesvin kalkule | J4: Samlet R-analyse
A5: Vis
A6: Nej
A7: Ja | C7: Styring af rækker som vises. Vælg og tryk på opdater rækkevisning | F7: Når alle input er indlagt kan nulpunkt beregnes via makroknap
A8: Ja | C8: Vis langsigtet prognose | D8: Ja | F8: Når alle input er indlagt kan nulpunkt beregnes via makroknap
A9: Ja | C9: Vis søer | D9: Ja
A10: Ja | C10: Vis smågrise | D10: Ja
A11: Ja | C11: Vis slagtesvin | D11: Ja | F11: Gule celler er input celle. Indsæt ikke egne rækker etc. I dette regneark
A12: Ja | C12: Vis cashflow søer | D12: Ja
A13: Ja | C13: Vis cashflow smågrise | D13: Ja
A14: Ja | C14: Vis cashflow slagtesvin | D14: Ja | F14: Der kan laves et kopi af arket som kan gives nyt navn, hvis man gerne vil have flere scenarier i samme regnearksfil
A15: Ja | C15: Konsolideret ved mere end 1 driftsgren | D15: Ja
A16: Ja | C16: Konsolideret cashflow | D16: Nej
A17: Ja | C17: Rentabilitetsanalyser svin ved investeringer i stalde
A18: =IF($D$8="Ja","Ja","Nej") -> Ja | C18: Prisprognose dansk griseproduktion mellemlang sigt | E18: Anbefalet prisniveau på mellemlang sigt er 2 kr. FEsv/slagtegrisefoder og 11,5 kr./kg i notering
A19: Ja | C19: Sidste længere prisprognose | D19: 2022-11-28 | F19: Normpristal
A20: Ja | C20: Indkøbt slagtegrisefoderpris prognose landsplan | D20: 2 | E20: kr./FEsv | F20: Produktionsafgift søer og slagtepolte | J20: 10.9
A21: Ja | C21: Mellemlamgsigtet notering svin ved denne foderpris | D21: 11.5 | E21: kr./kg | F21: Produktionsafgift slagtesvin | J21: 5.5
A22: Ja | C22: Diverse standard korrektioner, kr../kg | D22: 1.36 | F22: Genafgift søer | J22: 70
A23: Ja | C23: Gns. dansk afregningspris | D23: =D21+D22 -> 12.86 | E23: kr./kg | F23: Anslået købspris LY sopolte ved givet niveau | J23: =(D25+0.12)*125+500 -> 2122.5
A24: Ja | C24: Følsomhed notering svin (bruges af program) | D24: 0 | F24: Vedligehold bygninger af investeringssum | J24: 0.006
A25: Ja | C25: Dansk afregningspris inkl. følsomhedsfaktor | D25: =D21+D22+D24 -> 12.86 | F25: Vedligehold inventar af investeringssum | J25: 0.02
A26: Ja | C26: Afregningspris kr./kg slagtesøer | D26: =ROUND((D21+D24)*Smågrisepriser!B12,2)+(D22-Smågrisepriser!B10) -> 9.79
A27: Ja | C27: Følsomhedsanalyse (+/- 2 intervaller)
A28: Ja | C28: ="+/- gns. dansk notering kr./kg" -> +/- gns. dansk notering kr./kg | D28: 0.5 | E28: kr/kg
A29: Ja | C29: Renteniveau indlagt (wacc)
A30: Ja | C30: Kalkulationsrente i beregningerne (wacc) | D30: 0.0574 | E30: pa
A31: Ja | C31: Byggerente | D31: =D30 -> 0.0574 | E31: pa
A32: Ja | C32: Investeringens startdato | D32: 2023-07-01
A33: =IF($D$8="Ja","Ja","Nej") -> Ja
A34: Ja | C34: Tabel for smågrisenotering ved angivet notering og langsigtet foderprognose. Over 40 kg findes ingen beregnet notering
A35: Ja | C35: Indlagt notering + følsomhedsfaktor | D35: =D21+D24 -> 11.5
A36: Ja | C36: 7 kg smågrisepris | D36: =VLOOKUP(D20,Nulpunktstabel,4,FALSE)+(D35-VLOOKUP(D20,Nulpunktstabel,3,FALSE))*Normtal_slagtevægt*Finansieringssandel_7_kg -> 268.817956 | E36: Kr./gris
A37: Ja | C37: 30 kg smågrisepris | D37: =VLOOKUP(D20,Nulpunktstabel,5,FALSE)+(D35-VLOOKUP(D20,Nulpunktstabel,3,FALSE))*Normtal_slagtevægt*Finansieringsandel_30_kg -> 465.616596 | E37: Kr./gris
A38: Ja
A39: Ja | C39: Kg regulering | D39: Fra kg | E39: Til kg | F39: Kr/.kg | G39: Startpris | H39: Slutpris
A40: Ja | D40: 0 | E40: 7 | F40: =F41+Smågrisepriser!B$20 -> 12.96943184 | G40: =G41-E40*F40 -> 178.0319331 | H40: =G40+(E40-D40)*F40 -> 268.817956
A41: Ja | D41: =E40 -> 7 | E41: 9 | F41: =VLOOKUP(D$20,Nulpunktstabel,7,FALSE)*((D37-D36)/(VLOOKUP(D20,Nulpunktstabel,5,FALSE)-VLOOKUP(D20,Nulpunktstabel,4,FALSE))) -> 9.969431836 | G41: =D36 -> 268.817956 | H41: 288.7568197
A42: Ja | D42: 9 | E42: 12 | F42: =VLOOKUP(D$20,Nulpunktstabel,8,FALSE)*((D37-D36)/(VLOOKUP(D20,Nulpunktstabel,5,FALSE)-VLOOKUP(D20,Nulpunktstabel,4,FALSE))) -> 13.99831563 | G42: =H41 -> 288.7568197 | H42: 330.7517666
A43: Ja | D43: 12 | E43: 25 | F43: =VLOOKUP(D$20,Nulpunktstabel,9,FALSE)*((D37-D36)/(VLOOKUP(D20,Nulpunktstabel,5,FALSE)-VLOOKUP(D20,Nulpunktstabel,4,FALSE))) -> 8.057767587 | G43: =H42 -> 330.7517666 | H43: 435.5027452
A44: Ja | D44: 25 | E44: 30 | F44: =VLOOKUP(D$20,Nulpunktstabel,10,FALSE)*((D37-D36)/(VLOOKUP(D20,Nulpunktstabel,5,FALSE)-VLOOKUP(D20,Nulpunktstabel,4,FALSE))) -> 6.022770161 | G44: =H43 -> 435.5027452 | H44: 465.616596
A45: Ja | D45: 30 | E45: 40 | F45: =VLOOKUP(D$20,Nulpunktstabel,11,FALSE)*((D37-D36)/(VLOOKUP(D20,Nulpunktstabel,5,FALSE)-VLOOKUP(D20,Nulpunktstabel,4,FALSE))) -> 6.75249146 | G45: =H44 -> 465.616596 | H45: 533.1415106
A46: Ja | D46: 40 | E46: 130 | F46: =F45 -> 6.75249146 | G46: =H45 -> 533.1415106 | H46: 1140.865742
A47: Ja | D47: 130 | E47: 1000 | F47: =F46 -> 6.75249146
A48: Ja
A49: Ja
A50: =IF($D$9="Ja","Ja","Nej") -> Ja | C50: Rentabilitetsberegning søer
A51: =IF($D$9="Ja","Ja","Nej") -> Ja | C51: Antal årssøer | D51: =0*1200 -> 0 | F51: Investeringsbeløb pr. årsso
A52: Ja | C52: Produktions oplysninger
A53: Ja | C53: Fravænningsvægt, kg | D53: 6.5 | F53: Stalde, bygninger, miljøteknologi og tilskud
A54: Ja | C54: Spildfoderdage/kuld | D54: 13 | F54: Investeringsbeløb, kr.årsso | I54: 25000
A55: Ja | C55: Soens laktationsperiode, dage/kuld | D55: 32 | F55: Bygningsandel i % investeringsbeløb | I55: 0.68
A56: Ja | C56: Kuld/årsso | D56: =365/(D54+D55+117) -> 2.25308642 | F56: Levetid bygninger, år | I56: 25
A57: Ja | C57: Fravænnede grise/kuld | D57: 16.1 | F57: Levetid inventar, år | I57: 15
A58: Ja | C58: Fravænnnede grise/årsso | D58: =ROUND(D56*D57,1) -> 36.3 | F58: Miljøinvestering, kr./årsso | I58: 1100
A59: Ja | C59: Slagtevægt søer, kg | D59: 185 | F59: Forventet levetid miljøteknologi, år | I59: 12.5
A60: Ja | C60: 1 lægspct. efter indkøring, % af farekuld | D60: 0.235 | F60: Miljøtilladelse i kr./årsso | I60: =IF(D51>0,41+55,0) -> 0
A61: Ja | C61: Årlig soudskiftning, pct. | D61: =D56*D60 -> 0.5294753086 | F61: Levetid miljøansøgning, år | I61: 9
A62: Ja | C62: Udnyttelsesprocent polte, % | D62: 0.95 | F62: Fornyet miljøansøgning i kr./årsso | I62: =I60*0.5 -> 0
A63: Ja | C63: Sodødelighed, i % af årssøer | D63: 0.12 | F63: Tilskud pr. årsso, kr./årsso | I63: 0
A64: Ja | C64: Kernestyring eller indkøbte polte | D64: Nej
A65: Ja | C65: Prisreduktion polte 22 uger ved egen avl | D65: 400 | F65: Sum startinvestering
A66: Ja | C66: Indkøringstab % af fuld produktion | D66: 0.5 | F66: Investering bygninger | I66: =D51*I54*I55 -> 0
A67: Ja | F67: Investering inventar | I67: =D51*I54*(1-I55) -> 0
A68: Ja | C68: WACC overført pa. | D68: =D30 -> 0.0574 | F68: Renteomkostning byggeri | I68: =(I66*0.33+I67*0.25)*D31 -> 0
A69: Ja | F69: Miljøteknologi | I69: =I58*D51 -> 0
A70: Ja | C70: Vælg afrapportering enhed tabeller | D70: Kr./frav. | F70: Miljøansøgning | I70: =I60*D51 -> 0
A71: Ja | F71: Indkøringstab | I71: =D66*(21/52)*I125*D51 -> 0
A72: Ja | C72: Investerings nøgletal | F72: Tilskud | I72: =I63*D51*-1 -> 0
A73: Ja | C73: Projektets afkastningsgrad (AG = Intern rente) | D73: =IF(D51>0,XIRR(I179:I239,K179:K239,5%),"") ->  | F73: Lange aktiver i alt | I73: =SUM(I66:I72) -> 0
A74: Ja | C74: Økonomisk værdi tilføjet (EVA= AG-WACC), % | D74: =IF(D51>0,D73-D68,"") ->  | F74: Anskaffelsessum besætning | I74: =(J23-IF(D64="Ja",D65,0))*D51 -> 0
A75: Ja | C75: Tilbagebetalingstid, år | D75: =IF(D51>0,IF(MAX(J179:J239)>0,VLOOKUP(0,B179:C239,2,FALSE)+IF(VLOOKUP(0,B179:C239,2,FALSE)<I56,0.5),"Aldrig"),"") ->  | F75: Gns. værditilvækst besætning | I75: =(-1*(G112+G113+G124+G133)*D57/2)*D51 -> 0
A76: Ja | C76: Sikkerhedsmargin noteringsændring, kr./kg | D76: =IF(D51>0,I150*-1,"") ->  | F76: Korte aktiver i alt | I76: =SUM(I74:I75) -> 0
A77: Ja | C77: Projektets nulpunktsnotering. kr./kg | D77: =IF(D51>0,D21-D76,"") ->  | F77: Bunden Investering | I77: =I73+I76 -> 0
A78: Ja | C78: Projektets kapitalværdi i 1000 kr. | D78: =IF(D51>0,XNPV(D68,I179:I239,K179:K239)/1000,"") -> 
A79: Ja | F79: Beløb ved investeringens ophør
A80: Ja | C80: Nulpunkts priser | D80: =D70 -> Kr./frav. | F80: Afviklingstab søer | I80: =I71*-1*(50%/D66) -> 0
A81: Ja | C81: =C151 -> Salgspris fravænnede | D81: =I151 ->  | F81: Sobesætningselimeringstab | I81: =(D51*(J23-IF(D64="Ja",D65,0))-D26*D51*D59)*-1 -> 0
A82: Ja | C82: DB pr. enhed | D82: =I152 ->  | F82: Besætningsværdi ved eliminering | I82: =I74+I75 -> 0
A83: Ja | C83: Resultat pr. enhed | D83: =I153 ->  | F83: I alt | I83: =SUM(I80:I82) -> 0
A84: Ja
A85: Ja
A86: Ja
A87: Ja
A88: Ja
A89: Ja
A90: Ja
A91: Ja
A92: Ja
A93: Ja
A94: Ja
A95: Ja
A96: Ja
A97: Ja
A98: Ja
A99: Ja
A100: Ja
A101: Ja
A102: Ja
A103: Ja
A104: Ja
A105: Ja
A106: Ja
A107: Ja | C107: Søer rentabilitetskalkule | D107: Enhed input | E107: Enheder | F107: Enheds-værdi kr./enhed | G107: Kr./frav. | H107: Beløb pr år i kr. | I107: Kr./årsso
A108: Ja | C108: Salg fravænnede grise beregnet inkl. kg regulering | D108: pr. årsso | E108: =ROUND(D56*D57,1) -> 36.3 | F108: =VLOOKUP(D53,$D$40:$H$47,5,TRUE)-(VLOOKUP(D53,$D$40:$F$47,2,TRUE)-D53)*(VLOOKUP(D53,$D$40:$F$47,3,TRUE)) -> 262.3332401 | G108: =F108 -> 262.3332401 | H108: =$E$108*$D$51*G108 -> 0 | I108: =H108/IF(D$51>0,D$51,1) -> 0
A109: Ja | C109: Tillæg/fradrag i forhold til beregnet not. ved salg | D109: pr. årsso | E109: =E108 -> 36.3 | F109: 10 | G109: =F109 -> 10 | H109: 0 | I109: =H109/IF(D$51>0,D$51,1) -> 0
A110: Ja | C110: Salg af slagtesøer | D110: pr. årsso | E110: =(D61-D63) -> 0.4094753086 | F110: =D59*D26 -> 1811.15 | G110: =F110*E110/E$108 -> 20.43033623 | H110: 0 | I110: 0
A111: Ja | C111: Salg af slagtepolte | D111: pr. årsso | E111: =D61*(1-D62) -> 0.02647376543 | F111: =D25*83 -> 1067.38 | G111: =F111*E111/E$108 -> 0.7784453925 | H111: 0 | I111: 0
A112: Ja | C112: Sopolte udgift (Indkøbt/kostpris) | D112: pr. årsso | E112: =D61/D62 -> 0.5573424301 | F112: =J23-IF(D64="Ja",D65,0) -> 2122.5 | G112: =-1*F112*E112/E$108 -> -32.58841069 | H112: 0 | I112: 0
A113: Ja | C113: Diverse faste afgifter pr. årsso | D113: kr./årsso | E113: 1 | F113: =J22+SUM(E110:E111)*J20 -> 74.75184491 | G113: =-1*F113/E$108 -> -2.059279474 | H113: 0 | I113: 0
A114: Ja | C114: Bruttoudbytte pr. enhed | G114: =SUM(G108:G113) -> 258.8943315 | H114: =SUM(H108:H113) -> 0 | I114: 0
A115: =IF($D$9="Ja","Ja","Nej") -> Ja | C115: Sofoder | D115: Fesv/årsso | E115: 1536 | F115: =D20+0.05 -> 2.05 | G115: =-1*E115*F115/$E$108 -> -86.74380165 | H115: =$E$108*$D$51*G115 -> 0 | I115: =H115/IF(D$51>0,D$51,1) -> 0
A116: Ja | C116: Foderudgift pattegrise | D116: kr./fravænnet | E116: 1 | F116: 5 | G116: =-1*(E116*F116) -> -5 | H116: 0 | I116: 0
A117: Ja | C117: Smågrisefoder | D117: Fesv/årsso | E117: 0 | F117: 0 | G117: =-1*E117*F117/$E$108 -> 0 | H117: 0 | I117: 0
A118: Ja | C118: Slagtesvinfoder | D118: Fesv/årsso | E118: 0 | F118: 0 | G118: 0 | H118: 0 | I118: 0
A119: Ja | C119: Grovfoder | D119: Fesv/årsso | E119: 0 | F119: 0 | G119: 0 | H119: 0 | I119: 0
A120: Ja | C120: KS udgifter | D120: Doser/årsso | E120: =D56*2/0.9 -> 5.006858711 | F120: 18 | G120: -2.482739856 | H120: 0 | I120: 0
A121: Ja | C121: Rådgivning | D121: pr. årsso | E121: 1 | F121: 0 | G121: =-1*E121*F121/$E$108 -> 0 | H121: 0 | I121: =H121/IF(D$51>0,D$51,1) -> 0
A122: Ja | C122: Medicin & vacciner | D122: pr. årsso | E122: 1 | F122: 353 | G122: -9.724517906 | H122: 0 | I122: 0
A123: Ja | C123: Diverse stykomkostninger | D123: pr. årsso | E123: 1 | F123: 222 | G123: -6.115702479 | H123: 0 | I123: 0
A124: Ja | C124: Stykomkostninger i alt | G124: =SUM(G115:G123) -> -110.0667619 | H124: 0 | I124: 0
A125: Ja | C125: DB pr. enhed | G125: =G114+G124 -> 148.8275696 | H125: 0 | I125: 0
A126: Ja | C126: Arbejde | D126: timer pr. årsso | E126: 9.2 | F126: 192 | G126: =-1*E126*F126/$E$108 -> -48.66115702 | H126: 0 | I126: 0
A127: Ja | C127: Energi | D127: kwh/årsso | E127: 320 | F127: 0.8 | G127: -7.052341598 | H127: =$E$108*$D$51*G127 -> 0 | I127: 0
A128: Ja | C128: Forsikring | D128: kr./årsso | E128: 1 | F128: 71 | G128: -1.955922865 | H128: 0 | I128: 0
A129: Ja | C129: Driftsomkostning miljøteknologi | D129: kr./årsso | E129: 1 | F129: =56+26 -> 82 | G129: -2.258953168 | H129: 0 | I129: 0
A130: Ja | C130: Vedligehold | D130: kr./årsso | E130: 1 | F130: =F135*J24+F136*J25 -> 262 | G130: -7.217630854 | H130: 0 | I130: 0
A131: Ja | C131: Gyllens nettoværdi pr. ton (negativ hvis indtægt) | D131: ton/årsso | E131: 5.25 | F131: -20 | G131: 2.892561983 | H131: 0 | I131: 0
A132: Ja | C132: Diverse kapacitetsomkostninger | D132: kr./årsso | E132: 1 | F132: 300 | G132: =-1*E132*F132/$E$108 -> -8.26446281 | H132: 0 | I132: 0
A133: Ja | C133: Kontante kapacitetsomkostninger/enhed | D133: Kr./årsso | E133: 1 | G133: =SUM(G126:G132) -> -72.51790634 | H133: =$E$108*$D$51*G133 -> 0 | I133: 0
A134: Ja | C134: EBID resultat | G134: =G125+G133 -> 76.30966331 | H134: =H125+H133 -> 0 | I134: 0
A135: Ja | C135: Afskrivninger bygninger | D135: % årligt/stiplads | E135: =1/I$56 -> 0.04 | F135: =I54*I55 -> 17000 | G135: =-1*E135*F135/E$108 -> -18.73278237 | H135: =$E$108*$D$51*G135 -> 0 | I135: 0
A136: Ja | C136: Afskrivninger inventar | D136: % årligt/stiplads | E136: =CEILING(I56/I57,1)/I56 -> 0.08 | F136: =I54*(1-I55) -> 8000 | G136: =-1*E136*F136/E$108 -> -17.63085399 | H136: =$E$108*$D$51*G136 -> 0 | I136: 0
A137: Ja | C137: Afskrivninger miljøteknologi | D137: % årligt/stiplads | E137: =CEILING(I56/I59,1)/I56 -> 0.08 | F137: =I58 -> 1100 | G137: =-1*E137*F137/E$108 -> -2.424242424 | H137: =$E$108*$D$51*G137 -> 0 | I137: 0
A138: Ja | C138: Afskrivninger diverse | D138: % årligt/stiplads | E138: =E135 -> 0.04 | F138: =(I68+I70+I71+I80*-1+I81*-1+SUM(I171:I175))/IF(D51>0,D51,1) -> 0 | G138: =-1*E138*F138/E$108 -> 0 | H138: =$E$108*$D$51*G138 -> 0 | I138: 0
A139: Ja | C139: Korrektion afskrivninger pga. tilskud | D139: % årligt/stiplads | E139: =E135 -> 0.04 | F139: =I63 -> 0 | G139: =E139*F139/E$108 -> 0 | H139: =$E$108*$D$51*G139 -> 0 | I139: 0
A140: Ja | C140: Afskrivninger i alt | G140: =SUM(G135:G139) -> -38.78787879 | H140: =SUM(H135:H139) -> 0 | I140: =SUM(I135:I139) -> 0
A141: Ja | C141: Resultat af primær drift | G141: =G134+G140 -> 37.52178453 | H141: =H134+H140 -> 0 | I141: =I134+I140 -> 0
A142: Ja | C142: ="Renteomkostning" -> Renteomkostning | G142: =I142/D58 -> 0 | H142: =(SUM(F179:F239)*-1)/I56 -> 0 | I142: 0
A143: Ja | C143: Ordinært resultat pr. enhed | G143: =G141+G142 -> 37.52178453 | H143: =H141+H142 -> 0 | I143: =I141+I142 -> 0
A144: Ja | C144: Ekstra ordinære renteomkostninger | G144: =H144/IF(D51>0,D51*D58,1) -> 0 | H144: =IF(H239<0,H239*D68*5*0.5/I56,0) -> 0 | I144: =H144/IF(D51>0,D51,1) -> 0
A145: Ja | C145: Resultat pr. enhed | G145: =G143+G144 -> 37.52178453 | H145: =H143+H144 -> 0 | I145: =I143+I144 -> 0
A146: Ja | C146: Projektets afkastningsgrad | G146: =D73 ->  | H146: =D73 ->  | I146: =D73 -> 
A147: Ja
A148: =IF($D$9="Ja","Ja","Nej") -> Ja | F148: Nulpunktregulator kr./kg | I148: -0.1320532606
A149: Ja | D149: ="Følsomhed notering i forhold til: "&D$21&" kr./kg" -> Følsomhed notering i forhold til: 11,5 kr./kg | I149: Nulpunkts prognose
A150: Ja | C150: Noteringsændring kr./kg | D150: =2*$D$28*-1 -> -1 | E150: =1*$D$28*-1 -> -0.5 | F150: 0 | G150: =1*$D$28 -> 0.5 | H150: =2*$D$28 -> 1 | I150: =IF(D51>0,I148,0) -> 0
A151: Ja | C151: Salgspris fravænnede | D151: =D160 -> 
A152: Ja | C152: =C125 -> DB pr. enhed
A153: Ja | C153: Resultat pr. enhed | D153: =D164 -> 
A154: Nej
A155: Nej | C155: Følsomhedstabel søer
A156: Nej | C156: Valgt enhed
A157: Nej | C157: Salg fravænnede grise beregnet
A158: Nej | D158: Noteringsændring i kr./kg
A159: Nej | C159: =IF(D51>0,VLOOKUP(C157,$C$107:$I$146,IF(D70=G107,5,7),FALSE)+IF(C157=C108,IF(D70="Kr./årsso",I109,F109),0),"") ->  | D159: =D150 -> -1 | E159: -0.5 | F159: 0 | G159: 0.5 | H159: 1 | I159: =I148 -> -0.1320532606
A160: Nej | C160: =C108 -> Salg fravænnede grise beregnet inkl. kg regulering
A161: Nej | C161: =C152 -> DB pr. enhed
A162: Nej | C162: Resultat af primær drift
A163: Nej | C163: =C143 -> Ordinært resultat pr. enhed
A164: Nej | C164: =C145 -> Resultat pr. enhed
A165: Nej
A166: Nej
A167: Nej | C167: Søer reinvesteringstabel | D167: Halvårlig rente | E167: =POWER(10,LOG(D68+1)/2)-1 -> 0.02829956725
A168: Nej | C168: Forventede reinvesteringer i projektet levetid | D168: Inventar fornyelse år efter start | E168: Inventar investering år efter start | F168: Miljøteknologi fornyelse år efter start | G168: Miljøteknoloi investering år efter start | H168: Miljø tilladelse år efter start | I168: Miljø tilladelse, omkostning ved fornyelse
A169: Nej | C169: Levetid angivet | D169: =I57 -> 15 | F169: =I59 -> 12.5 | H169: =I61 -> 9
A170: Nej | C170: Fornyet investering antal gange | D170: =CEILING($I$56/I57,1)-1 -> 1 | F170: =CEILING($I$56/I59,1)-1 -> 1 | H170: =CEILING($I$56/I61,1)-1 -> 2
A171: Nej | C171: 1 | D171: =IF($C171<=D$170,D$169*$C171,"") -> 15 | E171: =IF(ISNUMBER(D171),(1-$I$55)*$I$54*$D$51,0)*IF(D$51>0,1,0) -> 0 | F171: =IF($C171<=F$170,F$169*$C171,"") -> 12.5 | G171: =IF(ISNUMBER(F171),$I$58*$D$51,0)*IF(D$51>0,1,0) -> 0 | H171: =IF($C171<=H$170,H$169*$C171,"") -> 9 | I171: =IF(ISNUMBER(H171),$I$62*$D$51,0)*IF(D$51>0,1,0) -> 0
A172: Nej | C172: 2 | D172: =IF($C172<=D$170,D$169*$C172,"") ->  | E172: =IF(ISNUMBER(D172),(1-$I$55)*$I$54*$D$51,0)*IF(D$51>0,1,0) -> 0 | F172: =IF($C172<=F$170,F$169*$C172,"") ->  | G172: =IF(ISNUMBER(F172),$I$58*$D$51,0)*IF(D$51>0,1,0) -> 0 | H172: =IF($C172<=H$170,H$169*$C172,"") -> 18 | I172: =IF(ISNUMBER(H172),$I$62*$D$51,0)*IF(D$51>0,1,0) -> 0
A173: Nej | C173: 3 | D173: =IF($C173<=D$170,D$169*$C173,"") ->  | E173: =IF(ISNUMBER(D173),(1-$I$55)*$I$54*$D$51,0)*IF(D$51>0,1,0) -> 0 | F173: =IF($C173<=F$170,F$169*$C173,"") ->  | G173: =IF(ISNUMBER(F173),$I$58*$D$51,0)*IF(D$51>0,1,0) -> 0 | H173: =IF($C173<=H$170,H$169*$C173,"") ->  | I173: =IF(ISNUMBER(H173),$I$62*$D$51,0)*IF(D$51>0,1,0) -> 0
A174: Nej | C174: 4 | D174: =IF($C174<=D$170,D$169*$C174,"") ->  | E174: =IF(ISNUMBER(D174),(1-$I$55)*$I$54*$D$51,0)*IF(D$51>0,1,0) -> 0 | F174: =IF($C174<=F$170,F$169*$C174,"") ->  | G174: =IF(ISNUMBER(F174),$I$58*$D$51,0)*IF(D$51>0,1,0) -> 0 | H174: =IF($C174<=H$170,H$169*$C174,"") ->  | I174: =IF(ISNUMBER(H174),$I$62*$D$51,0)*IF(D$51>0,1,0) -> 0
A175: Nej | C175: 5 | D175: =IF($C175<=D$170,D$169*$C175,"") ->  | E175: =IF(ISNUMBER(D175),(1-$I$55)*$I$54*$D$51,0)*IF(D$51>0,1,0) -> 0 | F175: =IF($C175<=F$170,F$169*$C175,"") ->  | G175: =IF(ISNUMBER(F175),$I$58*$D$51,0)*IF(D$51>0,1,0) -> 0 | H175: =IF($C175<=H$170,H$169*$C175,"") ->  | I175: =IF(ISNUMBER(H175),$I$62*$D$51,0)*IF(D$51>0,1,0) -> 0
A176: ja
A177: =IF($D$12="Ja","Ja","Nej") -> Ja | C177: Cashflow søer
A178: =IF($D$12="Ja","Ja","Nej") -> Ja | C178: Terminer i halvår | D178: Investerings-summer | E178: EBID Cashflow | F178: Rente-omkostning | G178: Rest afdrag | H178: Gæld saldo | I178: Cash flow ½ årligt | J178: PB saldo 1000 kr. | K178: Dato
A179: Ja | B179: =IF(J179>=0,0,J179) -> 0 | C179: 0 | D179: =I77*-1 -> 0 | E179: 0 | F179: 0 | G179: 0 | H179: =D179 -> 0 | I179: =D179+E179 -> 0 | J179: =(H179+IF(C179<$I$56,$I$83,0))/1000 -> 0 | K179: =DATE(YEAR(D32),IF(MONTH(D32)<=6,1,7),1) -> 2023-07-01
A180: Ja | B180: =IF(J180>=0,0,J180) -> 0 | C180: =IF(AND(C179<>FALSE,C179+0.5<=$I$56),C179+0.5) -> 0.5 | D180: =(IF(ISNA(VLOOKUP(C180,$D$171:$E$175,2,FALSE)),0,VLOOKUP(C180,$D$171:$E$175,2,FALSE))+IF(ISNA(VLOOKUP(C180,$F$171:$G$175,2,FALSE)),0,VLOOKUP(C180,$F$171:$G$175,2,FALSE))+IF(ISNA(VLOOKUP(C180,$H$171:$I$175,2,FALSE)),0,VLOOKUP(C180,$H$171:$I$175,2,FALSE)))*-1+IF(C180=$I$56,$I$83,0) -> 0 | E180: =IF(C180<=$I$56,H$134*0.5,0) -> 0 | F180: =IF(C180<=$I$56,IF(H179<0,H179*$E$167*-1,0),0) -> 0 | G180: =IF(H179>=0,0,IF(E180-F180>H179*-1,H179*-1,E180-F180)) -> 0 | H180: =H179+D180+G180 -> 0 | I180: =D180+E180 -> 0 | J180: 0 | K180: =IF(MONTH(K179)+6>12,DATE(YEAR(K179)+1,MONTH(K179)+6-12,1),DATE(YEAR(K179),MONTH(K179)+6,1)) -> 2024-01-01
A181: Ja | B181: 0 | C181: 1 | D181: 0 | E181: 0 | F181: 0 | G181: 0 | H181: 0 | I181: =D181+E181 -> 0 | J181: 0 | K181: =IF(MONTH(K180)+6>12,DATE(YEAR(K180)+1,MONTH(K180)+6-12,1),DATE(YEAR(K180),MONTH(K180)+6,1)) -> 2024-07-01
A182: Ja | B182: 0 | C182: 1.5 | D182: 0 | E182: 0 | F182: 0 | G182: 0 | H182: 0 | I182: 0 | J182: 0 | K182: 2025-01-01
A183: Ja | B183: 0 | C183: 2 | D183: 0 | E183: 0 | F183: 0 | G183: 0 | H183: 0 | I183: 0 | J183: 0 | K183: 2025-07-01
A184: Ja | B184: 0 | C184: 2.5 | D184: 0 | E184: 0 | F184: 0 | G184: 0 | H184: 0 | I184: 0 | J184: 0 | K184: 2026-01-01
A185: Ja | B185: 0 | C185: 3 | D185: 0 | E185: 0 | F185: 0 | G185: 0 | H185: 0 | I185: 0 | J185: 0 | K185: 2026-07-01
A186: Ja | B186: 0 | C186: 3.5 | D186: 0 | E186: 0 | F186: 0 | G186: 0 | H186: 0 | I186: 0 | J186: 0 | K186: 2027-01-01
A187: Ja | B187: 0 | C187: 4 | D187: 0 | E187: 0 | F187: 0 | G187: 0 | H187: 0 | I187: 0 | J187: 0 | K187: 2027-07-01
A188: Ja | B188: 0 | C188: 4.5 | D188: 0 | E188: 0 | F188: 0 | G188: 0 | H188: 0 | I188: 0 | J188: 0 | K188: 2028-01-01
A189: Ja | B189: 0 | C189: 5 | D189: 0 | E189: 0 | F189: 0 | G189: 0 | H189: 0 | I189: 0 | J189: 0 | K189: 2028-07-01
A190: Ja | B190: 0 | C190: 5.5 | D190: 0 | E190: 0 | F190: 0 | G190: 0 | H190: 0 | I190: 0 | J190: 0 | K190: 2029-01-01
A191: Ja | B191: 0 | C191: 6 | D191: 0 | E191: 0 | F191: 0 | G191: 0 | H191: 0 | I191: 0 | J191: 0 | K191: 2029-07-01
A192: Ja | B192: 0 | C192: 6.5 | D192: 0 | E192: 0 | F192: 0 | G192: 0 | H192: 0 | I192: 0 | J192: 0 | K192: 2030-01-01
A193: Ja | B193: 0 | C193: 7 | D193: 0 | E193: 0 | F193: 0 | G193: 0 | H193: 0 | I193: 0 | J193: 0 | K193: 2030-07-01
A194: Ja | B194: 0 | C194: 7.5 | D194: 0 | E194: 0 | F194: 0 | G194: 0 | H194: 0 | I194: 0 | J194: 0 | K194: 2031-01-01
A195: Ja | B195: 0 | C195: 8 | D195: 0 | E195: 0 | F195: 0 | G195: 0 | H195: 0 | I195: 0 | J195: 0 | K195: 2031-07-01
A196: Ja | B196: 0 | C196: 8.5 | D196: 0 | E196: 0 | F196: 0 | G196: 0 | H196: 0 | I196: 0 | J196: 0 | K196: 2032-01-01
A197: Ja | B197: 0 | C197: 9 | D197: 0 | E197: 0 | F197: 0 | G197: 0 | H197: 0 | I197: 0 | J197: 0 | K197: 2032-07-01
A198: Ja | B198: 0 | C198: 9.5 | D198: 0 | E198: 0 | F198: 0 | G198: 0 | H198: 0 | I198: 0 | J198: 0 | K198: 2033-01-01
A199: Ja | B199: 0 | C199: 10 | D199: 0 | E199: 0 | F199: 0 | G199: 0 | H199: 0 | I199: 0 | J199: 0 | K199: 2033-07-01
A200: Ja | B200: 0 | C200: 10.5 | D200: 0 | E200: 0 | F200: 0 | G200: 0 | H200: 0 | I200: 0 | J200: 0 | K200: 2034-01-01
A201: Ja | B201: 0 | C201: 11 | D201: 0 | E201: 0 | F201: 0 | G201: 0 | H201: 0 | I201: 0 | J201: 0 | K201: 2034-07-01
A202: Ja | B202: 0 | C202: 11.5 | D202: 0 | E202: 0 | F202: 0 | G202: 0 | H202: 0 | I202: 0 | J202: 0 | K202: 2035-01-01
... 511 more rows

Sheet Investerings kalkule u. makro
C2: Rentabilitetsanalyser svin ved investeringer i stalde | F2: For: | G2: SEGES
C4: Navigationslink række visninger | D4: Prisprognose på mellem langsigt | F4: So kalkule | G4: Smågrise kalkule | H4: Slagtesvin kalkule | J4: Samlet R-analyse
A5: Vis
A6: Nej
A7: Ja | C7: Styring af rækker som vises via egne valg. Vælg celle A4 og vælg ja og tryk ok
A8: Ja | C8: Vis langsigtet prognose | D8: Ja | F8: Foretag dine valg, og vælg celle A4 og sig Ok til vis Ja
A9: Ja | C9: Vis søer | D9: Ja
A10: Ja | C10: Vis smågrise | D10: Ja
A11: Ja | C11: Vis slagtesvin | D11: Ja | F11: Gule celler er input celle. Indsæt ikke egne rækker etc. I dette regneark
A12: Ja | C12: Vis cashflow søer | D12: Ja
A13: Ja | C13: Vis cashflow smågrise | D13: Ja
A14: Ja | C14: Vis cashflow slagtesvin | D14: Ja | F14: Der kan laves et kopi af arket som kan gives nyt navn, hvis man gerne vil have flere scenarier i samme regnearksfil
A15: Ja | C15: Konsolideret ved mere end 1 driftsgren | D15: Ja
A16: Ja | C16: Konsolideret cashflow | D16: Nej
A17: Ja | C17: Rentabilitetsanalyser svin ved investeringer i stalde
A18: =IF($D$8="Ja","Ja","Nej") -> Ja | C18: Prisprognose dansk griseproduktion mellemlang sigt | E18: Anbefalet prisniveau på mellemlang sigt er 2 kr. FEsv/slagtegrisefoder og 11,5 kr./kg i notering
A19: Ja | C19: Sidste længere prisprognose | D19: 2022-11-28 | F19: Normpristal
A20: Ja | C20: Indkøbt slagtegrisefoderpris prognose landsplan | D20: 2 | E20: kr./FEsv | F20: Produktionsafgift søer og slagtepolte | J20: 10.9
A21: Ja | C21: Mellemlamgsigtet notering svin ved denne foderpris | D21: 11.5 | E21: kr./kg | F21: Produktionsafgift slagtesvin | J21: 5.5
A22: Ja | C22: Diverse standard korrektioner, kr../kg | D22: 1.36 | F22: Genafgift søer | J22: 70
A23: Ja | C23: Gns. dansk afregningspris | D23: =D21+D22 -> 12.86 | E23: kr./kg | F23: Anslået købspris LY sopolte ved givet niveau | J23: =(D25+0.12)*125+500 -> 2122.5
A24: Ja | C24: Følsomhed notering svin (bruges af program) | D24: 0 | F24: Vedligehold bygninger af investeringssum | J24: 0.006
A25: Ja | C25: Dansk afregningspris inkl. følsomhedsfaktor | D25: =D21+D22+D24 -> 12.86 | F25: Vedligehold inventar af investeringssum | J25: 0.02
A26: Ja | C26: Afregningspris kr./kg slagtesøer | D26: =ROUND((D21+D24)*Smågrisepriser!B12,2)+(D22-Smågrisepriser!B10) -> 9.79
A27: Ja | C27: Følsomhedsanalyse (+/- 2 intervaller)
A28: Ja | C28: ="+/- gns. dansk notering kr./kg" -> +/- gns. dansk notering kr./kg | D28: 0.5 | E28: kr/kg
A29: Ja | C29: Renteniveau indlagt (wacc)
A30: Ja | C30: Kalkulationsrente i beregningerne (wacc) | D30: 0.0574 | E30: pa
A31: Ja | C31: Byggerente | D31: 0.0574 | E31: pa
A32: Ja | C32: Investeringens startdato | D32: 2023-07-01
A33: =IF($D$8="Ja","Ja","Nej") -> Ja
A34: Ja | C34: Tabel for smågrisenotering ved angivet notering og langsigtet foderprognose. Over 40 kg findes ingen beregnet notering
A35: Ja | C35: Indlagt notering + følsomhedsfaktor | D35: =D21+D24 -> 11.5
A36: Ja | C36: 7 kg smågrisepris | D36: =VLOOKUP(D20,Nulpunktstabel,4,FALSE)+(D35-VLOOKUP(D20,Nulpunktstabel,3,FALSE))*Normtal_slagtevægt*Finansieringssandel_7_kg -> 268.817956 | E36: Kr./gris
A37: Ja | C37: 30 kg smågrisepris | D37: =VLOOKUP(D20,Nulpunktstabel,5,FALSE)+(D35-VLOOKUP(D20,Nulpunktstabel,3,FALSE))*Normtal_slagtevægt*Finansieringsandel_30_kg -> 465.616596 | E37: Kr./gris
A38: Ja
A39: Ja | C39: Kg regulering | D39: Fra kg | E39: Til kg | F39: Kr/.kg | G39: Startpris | H39: Slutpris
A40: Ja | D40: 0 | E40: 7 | F40: =F41+Smågrisepriser!B$20 -> 12.96943184 | G40: =G41-E40*F40 -> 178.0319331 | H40: =G40+(E40-D40)*F40 -> 268.817956
A41: Ja | D41: =E40 -> 7 | E41: 9 | F41: =VLOOKUP(D$20,Nulpunktstabel,7,FALSE)*((D37-D36)/(VLOOKUP(D20,Nulpunktstabel,5,FALSE)-VLOOKUP(D20,Nulpunktstabel,4,FALSE))) -> 9.969431836 | G41: =D36 -> 268.817956 | H41: 288.7568197
A42: Ja | D42: 9 | E42: 12 | F42: =VLOOKUP(D$20,Nulpunktstabel,8,FALSE)*((D37-D36)/(VLOOKUP(D20,Nulpunktstabel,5,FALSE)-VLOOKUP(D20,Nulpunktstabel,4,FALSE))) -> 13.99831563 | G42: =H41 -> 288.7568197 | H42: 330.7517666
A43: Ja | D43: 12 | E43: 25 | F43: =VLOOKUP(D$20,Nulpunktstabel,9,FALSE)*((D37-D36)/(VLOOKUP(D20,Nulpunktstabel,5,FALSE)-VLOOKUP(D20,Nulpunktstabel,4,FALSE))) -> 8.057767587 | G43: =H42 -> 330.7517666 | H43: 435.5027452
A44: Ja | D44: 25 | E44: 30 | F44: =VLOOKUP(D$20,Nulpunktstabel,10,FALSE)*((D37-D36)/(VLOOKUP(D20,Nulpunktstabel,5,FALSE)-VLOOKUP(D20,Nulpunktstabel,4,FALSE))) -> 6.022770161 | G44: =H43 -> 435.5027452 | H44: 465.616596
A45: Ja | D45: 30 | E45: 40 | F45: =VLOOKUP(D$20,Nulpunktstabel,11,FALSE)*((D37-D36)/(VLOOKUP(D20,Nulpunktstabel,5,FALSE)-VLOOKUP(D20,Nulpunktstabel,4,FALSE))) -> 6.75249146 | G45: =H44 -> 465.616596 | H45: 533.1415106
A46: Ja | D46: 40 | E46: 130 | F46: =F45 -> 6.75249146 | G46: =H45 -> 533.1415106 | H46: 1140.865742
A47: Ja | D47: 130 | E47: 1000 | F47: =F46 -> 6.75249146
A48: Ja
A49: Ja
A50: =IF($D$9="Ja","Ja","Nej") -> Ja | C50: Rentabilitetsberegning søer
A51: =IF($D$9="Ja","Ja","Nej") -> Ja | C51: Antal årssøer | D51: =0*1200 -> 0 | F51: Investeringsbeløb pr. årsso
A52: Ja | C52: Produktions oplysninger
A53: Ja | C53: Fravænningsvægt, kg | D53: 6.5 | F53: Stalde, bygninger, miljøteknologi og tilskud
A54: Ja | C54: Spildfoderdage/kuld | D54: 13 | F54: Investeringsbeløb, kr.årsso | I54: 25000
A55: Ja | C55: Soens laktationsperiode, dage/kuld | D55: 32 | F55: Bygningsandel i % investeringsbeløb | I55: 0.68
A56: Ja | C56: Kuld/årsso | D56: =365/(D54+D55+117) -> 2.25308642 | F56: Levetid bygninger, år | I56: 25
A57: Ja | C57: Fravænnede grise/kuld | D57: 16.1 | F57: Levetid inventar, år | I57: 15
A58: Ja | C58: Fravænnnede grise/årsso | D58: =ROUND(D56*D57,1) -> 36.3 | F58: Miljøinvestering, kr./årsso | I58: 1100
A59: Ja | C59: Slagtevægt søer, kg | D59: 185 | F59: Forventet levetid miljøteknologi, år | I59: 12.5
A60: Ja | C60: 1 lægspct. efter indkøring, % af farekuld | D60: 0.235 | F60: Miljøtilladelse i kr./årsso | I60: =IF(D51>0,41+55,0) -> 0
A61: Ja | C61: Årlig soudskiftning, pct. | D61: =D56*D60 -> 0.5294753086 | F61: Levetid miljøansøgning, år | I61: 9
A62: Ja | C62: Udnyttelsesprocent polte, % | D62: 0.95 | F62: Fornyet miljøansøgning i kr./årsso | I62: =I60*0.5 -> 0
A63: Ja | C63: Sodødelighed, i % af årssøer | D63: 0.12 | F63: Tilskud pr. årsso, kr./årsso | I63: 0
A64: Ja | C64: Kernestyring eller indkøbte polte | D64: Nej
A65: Ja | C65: Prisreduktion polte 22 uger ved egen avl | D65: 400 | F65: Sum startinvestering
A66: Ja | C66: Indkøringstab % af fuld produktion | D66: 0.5 | F66: Investering bygninger | I66: =D51*I54*I55 -> 0
A67: Ja | F67: Investering inventar | I67: =D51*I54*(1-I55) -> 0
A68: Ja | C68: WACC overført pa. | D68: =D30 -> 0.0574 | F68: Renteomkostning byggeri | I68: =(I66*0.33+I67*0.25)*D31 -> 0
A69: Ja | F69: Miljøteknologi | I69: =I58*D51 -> 0
A70: Ja | C70: Vælg afrapportering enhed tabeller | D70: Kr./frav. | F70: Miljøansøgning | I70: =I60*D51 -> 0
A71: Ja | F71: Indkøringstab | I71: =D66*(21/52)*I125*D51 -> 0
A72: Ja | C72: Investerings nøgletal | F72: Tilskud | I72: =I63*D51*-1 -> 0
A73: Ja | C73: Projektets afkastningsgrad (AG = Intern rente) | D73: =IF(D51>0,XIRR(I179:I239,K179:K239,5%),"") ->  | F73: Lange aktiver i alt | I73: =SUM(I66:I72) -> 0
A74: Ja | C74: Økonomisk værdi tilføjet (EVA= AG-WACC), % | D74: =IF(D51>0,D73-D68,"") ->  | F74: Anskaffelsessum besætning | I74: =(J23-IF(D64="Ja",D65,0))*D51 -> 0
A75: Ja | C75: Tilbagebetalingstid, år | D75: =IF(D51>0,IF(MAX(J179:J239)>0,VLOOKUP(0,B179:C239,2,FALSE)+IF(VLOOKUP(0,B179:C239,2,FALSE)<I56,0.5),"Aldrig"),"") ->  | F75: Gns. værditilvækst besætning | I75: =(-1*(G112+G113+G124+G133)*D57/2)*D51 -> 0
A76: Ja | C76: Sikkerhedsmargin noteringsændring, kr./kg | D76: =IF(D51>0,I150*-1,"") ->  | F76: Korte aktiver i alt | I76: =SUM(I74:I75) -> 0
A77: Ja | C77: Projektets nulpunktsnotering. kr./kg | D77: =IF(D51>0,D21-D76,"") ->  | F77: Bunden Investering | I77: =I73+I76 -> 0
A78: Ja | C78: Projektets kapitalværdi i 1000 kr. | D78: =IF(D51>0,XNPV(D68,I179:I239,K179:K239)/1000,"") -> 
A79: Ja | F79: Beløb ved investeringens ophør
A80: Ja | C80: Nulpunkts priser | D80: =D70 -> Kr./frav. | F80: Afviklingstab søer | I80: =I71*-1*(50%/D66) -> 0
A81: Ja | C81: =C151 -> Salgspris fravænnede | D81: =I151 ->  | F81: Sobesætningselimeringstab | I81: =(D51*(J23-IF(D64="Ja",D65,0))-D26*D51*D59)*-1 -> 0
A82: Ja | C82: DB pr. enhed | D82: =I152 ->  | F82: Besætningsværdi ved eliminering | I82: =I74+I75 -> 0
A83: Ja | C83: Resultat pr. enhed | D83: =I153 ->  | F83: I alt | I83: =SUM(I80:I82) -> 0
A84: Ja
A85: Ja
A86: Ja
A87: Ja
A88: Ja
A89: Ja
A90: Ja
A91: Ja
A92: Ja
A93: Ja
A94: Ja
A95: Ja
A96: Ja
A97: Ja
A98: Ja
A99: Ja
A100: Ja
A101: Ja
A102: Ja
A103: Ja
A104: Ja
A105: Ja
A106: Ja
A107: Ja | C107: Søer rentabilitetskalkule | D107: Enhed input | E107: Enheder | F107: Enheds-værdi kr./enhed | G107: Kr./frav. | H107: Beløb pr år i kr. | I107: Kr./årsso
A108: Ja | C108: Salg fravænnede grise beregnet inkl. kg regulering | D108: pr. årsso | E108: =ROUND(D56*D57,1) -> 36.3 | F108: =VLOOKUP(D53,$D$40:$H$47,5,TRUE)-(VLOOKUP(D53,$D$40:$F$47,2,TRUE)-D53)*(VLOOKUP(D53,$D$40:$F$47,3,TRUE)) -> 262.3332401 | G108: =F108 -> 262.3332401 | H108: =$E$108*$D$51*G108 -> 0 | I108: =H108/IF(D$51>0,D$51,1) -> 0
A109: Ja | C109: Tillæg/fradrag i forhold til beregnet not. ved salg | D109: pr. årsso | E109: =E108 -> 36.3 | F109: 10 | G109: =F109 -> 10 | H109: 0 | I109: =H109/IF(D$51>0,D$51,1) -> 0
A110: Ja | C110: Salg af slagtesøer | D110: pr. årsso | E110: =(D61-D63) -> 0.4094753086 | F110: =D59*D26 -> 1811.15 | G110: =F110*E110/E$108 -> 20.43033623 | H110: 0 | I110: 0
A111: Ja | C111: Salg af slagtepolte | D111: pr. årsso | E111: =D61*(1-D62) -> 0.02647376543 | F111: =D25*83 -> 1067.38 | G111: =F111*E111/E$108 -> 0.7784453925 | H111: 0 | I111: 0
A112: Ja | C112: Sopolte udgift (Indkøbt/kostpris) | D112: pr. årsso | E112: =D61/D62 -> 0.5573424301 | F112: =J23-IF(D64="Ja",D65,0) -> 2122.5 | G112: =-1*F112*E112/E$108 -> -32.58841069 | H112: 0 | I112: 0
A113: Ja | C113: Diverse faste afgifter pr. årsso | D113: kr./årsso | E113: 1 | F113: =J22+SUM(E110:E111)*J20 -> 74.75184491 | G113: =-1*F113/E$108 -> -2.059279474 | H113: 0 | I113: 0
A114: Ja | C114: Bruttoudbytte pr. enhed | G114: =SUM(G108:G113) -> 258.8943315 | H114: =SUM(H108:H113) -> 0 | I114: 0
A115: =IF($D$9="Ja","Ja","Nej") -> Ja | C115: Sofoder | D115: Fesv/årsso | E115: 1536 | F115: =D20+0.05 -> 2.05 | G115: =-1*E115*F115/$E$108 -> -86.74380165 | H115: =$E$108*$D$51*G115 -> 0 | I115: 0
A116: Ja | C116: Foderudgift pattegrise | D116: kr./fravænnet | E116: 1 | F116: 5 | G116: =-1*(E116*F116) -> -5 | H116: 0 | I116: 0
A117: Ja | C117: Smågrisefoder | D117: Fesv/årsso | E117: 0 | F117: 0 | G117: =-1*E117*F117/$E$108 -> 0 | H117: 0 | I117: 0
A118: Ja | C118: Slagtesvinfoder | D118: Fesv/årsso | E118: 0 | F118: 0 | G118: 0 | H118: 0 | I118: 0
A119: Ja | C119: Grovfoder | D119: Fesv/årsso | E119: 0 | F119: 0 | G119: 0 | H119: 0 | I119: 0
A120: Ja | C120: KS udgifter | D120: Doser/årsso | E120: =D56*2/0.9 -> 5.006858711 | F120: 18 | G120: -2.482739856 | H120: 0 | I120: 0
A121: Ja | C121: Rådgivning | D121: pr. årsso | E121: 1 | F121: 0 | G121: =-1*E121*F121/$E$108 -> 0 | H121: 0 | I121: =H121/IF(D$51>0,D$51,1) -> 0
A122: Ja | C122: Medicin & vacciner | D122: pr. årsso | E122: 1 | F122: 353 | G122: -9.724517906 | H122: 0 | I122: 0
A123: Ja | C123: Diverse stykomkostninger | D123: pr. årsso | E123: 1 | F123: 222 | G123: -6.115702479 | H123: 0 | I123: 0
A124: Ja | C124: Stykomkostninger i alt | G124: =SUM(G115:G123) -> -110.0667619 | H124: 0 | I124: 0
A125: Ja | C125: DB pr. enhed | G125: =G114+G124 -> 148.8275696 | H125: 0 | I125: 0
A126: Ja | C126: Arbejde | D126: timer pr. årsso | E126: 9.2 | F126: 192 | G126: =-1*E126*F126/$E$108 -> -48.66115702 | H126: 0 | I126: 0
A127: Ja | C127: Energi | D127: kwh/årsso | E127: 320 | F127: 0.8 | G127: -7.052341598 | H127: 0 | I127: 0
A128: Ja | C128: Forsikring | D128: kr./årsso | E128: 1 | F128: 71 | G128: -1.955922865 | H128: 0 | I128: 0
A129: Ja | C129: Driftsomkostning miljøteknologi | D129: kr./årsso | E129: 1 | F129: =56+26 -> 82 | G129: -2.258953168 | H129: 0 | I129: 0
A130: Ja | C130: Vedligehold | D130: kr./årsso | E130: 1 | F130: =F135*J24+F136*J25 -> 262 | G130: -7.217630854 | H130: 0 | I130: 0
A131: Ja | C131: Gyllens nettoværdi pr. ton (negativ hvis indtægt) | D131: ton/årsso | E131: 5.25 | F131: -20 | G131: 2.892561983 | H131: 0 | I131: 0
A132: Ja | C132: Diverse kapacitetsomkostninger | D132: kr./årsso | E132: 1 | F132: 300 | G132: =-1*E132*F132/$E$108 -> -8.26446281 | H132: 0 | I132: 0
A133: Ja | C133: Kontante kapacitetsomkostninger/enhed | D133: Kr./årsso | E133: 1 | G133: =SUM(G126:G132) -> -72.51790634 | H133: =$E$108*$D$51*G133 -> 0 | I133: 0
A134: Ja | C134: EBID resultat | G134: =G125+G133 -> 76.30966331 | H134: =H125+H133 -> 0 | I134: 0
A135: Ja | C135: Afskrivninger bygninger | D135: % årligt/stiplads | E135: =1/I$56 -> 0.04 | F135: =I54*I55 -> 17000 | G135: =-1*E135*F135/E$108 -> -18.73278237 | H135: =$E$108*$D$51*G135 -> 0 | I135: 0
A136: Ja | C136: Afskrivninger inventar | D136: % årligt/stiplads | E136: =CEILING(I56/I57,1)/I56 -> 0.08 | F136: =I54*(1-I55) -> 8000 | G136: =-1*E136*F136/E$108 -> -17.63085399 | H136: =$E$108*$D$51*G136 -> 0 | I136: 0
A137: Ja | C137: Afskrivninger miljøteknologi | D137: % årligt/stiplads | E137: =CEILING(I56/I59,1)/I56 -> 0.08 | F137: =I58 -> 1100 | G137: =-1*E137*F137/E$108 -> -2.424242424 | H137: =$E$108*$D$51*G137 -> 0 | I137: 0
A138: Ja | C138: Afskrivninger diverse | D138: % årligt/stiplads | E138: =E135 -> 0.04 | F138: =(I68+I70+I71+I80*-1+I81*-1+SUM(I171:I175))/IF(D51>0,D51,1) -> 0 | G138: =-1*E138*F138/E$108 -> 0 | H138: =$E$108*$D$51*G138 -> 0 | I138: 0
A139: Ja | C139: Korrektion afskrivninger pga. tilskud | D139: % årligt/stiplads | E139: =E135 -> 0.04 | F139: =I63 -> 0 | G139: =E139*F139/E$108 -> 0 | H139: =$E$108*$D$51*G139 -> 0 | I139: 0
A140: Ja | C140: Afskrivninger i alt | G140: =SUM(G135:G139) -> -38.78787879 | H140: =SUM(H135:H139) -> 0 | I140: =SUM(I135:I139) -> 0
A141: Ja | C141: Resultat af primær drift | G141: =G134+G140 -> 37.52178453 | H141: =H134+H140 -> 0 | I141: =I134+I140 -> 0
A142: Ja | C142: ="Renteomkostning" -> Renteomkostning | G142: =I142/D58 -> 0 | H142: =(SUM(F179:F239)*-1)/I56 -> 0 | I142: 0
A143: Ja | C143: Ordinært resultat pr. enhed | G143: =G141+G142 -> 37.52178453 | H143: =H141+H142 -> 0 | I143: =I141+I142 -> 0
A144: Ja | C144: Ekstra ordinære renteomkostninger | G144: =H144/IF(D51>0,D51*D58,1) -> 0 | H144: =IF(H239<0,H239*D68*5*0.5/I56,0) -> 0 | I144: =H144/IF(D51>0,D51,1) -> 0
A145: Ja | C145: Resultat pr. enhed | G145: =G143+G144 -> 37.52178453 | H145: =H143+H144 -> 0 | I145: =I143+I144 -> 0
A146: Ja | C146: Projektets afkastningsgrad | G146: =D73 ->  | H146: =D73 ->  | I146: =D73 -> 
A147: Ja
A148: =IF($D$9="Ja","Ja","Nej") -> Ja | F148: Nulpunktregulator kr./kg | I148: -0.2258791062
A149: Ja | D149: ="Følsomhed notering i forhold til: "&D$21&" kr./kg" -> Følsomhed notering i forhold til: 11,5 kr./kg | I149: Nulpunkts prognose
A150: Ja | C150: Noteringsændring kr./kg | D150: =2*$D$28*-1 -> -1 | E150: =1*$D$28*-1 -> -0.5 | F150: 0 | G150: =1*$D$28 -> 0.5 | H150: =2*$D$28 -> 1 | I150: =IF(D51>0,I148,0) -> 0
A151: Ja | C151: Salgspris fravænnede | D151: =D160 -> 
A152: Ja | C152: =C125 -> DB pr. enhed
A153: Ja | C153: Resultat pr. enhed | D153: =D164 -> 
A154: Nej
A155: Nej | C155: Følsomhedstabel søer
A156: Nej | C156: Valgt enhed
A157: Nej | C157: Salg fravænnede grise beregnet
A158: Nej | D158: Noteringsændring i kr./kg
A159: Nej | C159: =IF(D51>0,VLOOKUP(C157,$C$107:$I$146,IF(D70=G107,5,7),FALSE)+IF(C157=C108,IF(D70="Kr./årsso",I109,F109),0),"") ->  | D159: =D150 -> -1 | E159: -0.5 | F159: 0 | G159: 0.5 | H159: 1 | I159: =I148 -> -0.2258791062
A160: Nej | C160: =C108 -> Salg fravænnede grise beregnet inkl. kg regulering
A161: Nej | C161: =C152 -> DB pr. enhed
A162: Nej | C162: Resultat af primær drift
A163: Nej | C163: =C143 -> Ordinært resultat pr. enhed
A164: Nej | C164: =C145 -> Resultat pr. enhed
A165: Nej
A166: Nej
A167: Nej | C167: Søer reinvesteringstabel | D167: Halvårlig rente | E167: =POWER(10,LOG(D68+1)/2)-1 -> 0.02829956725
A168: Nej | C168: Forventede reinvesteringer i projektet levetid | D168: Inventar fornyelse år efter start | E168: Inventar investering år efter start | F168: Miljøteknologi fornyelse år efter start | G168: Miljøteknoloi investering år efter start | H168: Miljø tilladelse år efter start | I168: Miljø tilladelse, omkostning ved fornyelse
A169: Nej | C169: Levetid angivet | D169: =I57 -> 15 | F169: =I59 -> 12.5 | H169: =I61 -> 9
A170: Nej | C170: Fornyet investering antal gange | D170: =CEILING($I$56/I57,1)-1 -> 1 | F170: =CEILING($I$56/I59,1)-1 -> 1 | H170: =CEILING($I$56/I61,1)-1 -> 2
A171: Nej | C171: 1 | D171: =IF($C171<=D$170,D$169*$C171,"") -> 15 | E171: =IF(ISNUMBER(D171),(1-$I$55)*$I$54*$D$51,0)*IF(D$51>0,1,0) -> 0 | F171: =IF($C171<=F$170,F$169*$C171,"") -> 12.5 | G171: =IF(ISNUMBER(F171),$I$58*$D$51,0)*IF(D$51>0,1,0) -> 0 | H171: =IF($C171<=H$170,H$169*$C171,"") -> 9 | I171: =IF(ISNUMBER(H171),$I$62*$D$51,0)*IF(D$51>0,1,0) -> 0
A172: Nej | C172: 2 | D172: =IF($C172<=D$170,D$169*$C172,"") ->  | E172: =IF(ISNUMBER(D172),(1-$I$55)*$I$54*$D$51,0)*IF(D$51>0,1,0) -> 0 | F172: =IF($C172<=F$170,F$169*$C172,"") ->  | G172: =IF(ISNUMBER(F172),$I$58*$D$51,0)*IF(D$51>0,1,0) -> 0 | H172: =IF($C172<=H$170,H$169*$C172,"") -> 18 | I172: =IF(ISNUMBER(H172),$I$62*$D$51,0)*IF(D$51>0,1,0) -> 0
A173: Nej | C173: 3 | D173: =IF($C173<=D$170,D$169*$C173,"") ->  | E173: =IF(ISNUMBER(D173),(1-$I$55)*$I$54*$D$51,0)*IF(D$51>0,1,0) -> 0 | F173: =IF($C173<=F$170,F$169*$C173,"") ->  | G173: =IF(ISNUMBER(F173),$I$58*$D$51,0)*IF(D$51>0,1,0) -> 0 | H173: =IF($C173<=H$170,H$169*$C173,"") ->  | I173: =IF(ISNUMBER(H173),$I$62*$D$51,0)*IF(D$51>0,1,0) -> 0
A174: Nej | C174: 4 | D174: =IF($C174<=D$170,D$169*$C174,"") ->  | E174: =IF(ISNUMBER(D174),(1-$I$55)*$I$54*$D$51,0)*IF(D$51>0,1,0) -> 0 | F174: =IF($C174<=F$170,F$169*$C174,"") ->  | G174: =IF(ISNUMBER(F174),$I$58*$D$51,0)*IF(D$51>0,1,0) -> 0 | H174: =IF($C174<=H$170,H$169*$C174,"") ->  | I174: =IF(ISNUMBER(H174),$I$62*$D$51,0)*IF(D$51>0,1,0) -> 0
A175: Nej | C175: 5 | D175: =IF($C175<=D$170,D$169*$C175,"") ->  | E175: =IF(ISNUMBER(D175),(1-$I$55)*$I$54*$D$51,0)*IF(D$51>0,1,0) -> 0 | F175: =IF($C175<=F$170,F$169*$C175,"") ->  | G175: =IF(ISNUMBER(F175),$I$58*$D$51,0)*IF(D$51>0,1,0) -> 0 | H175: =IF($C175<=H$170,H$169*$C175,"") ->  | I175: =IF(ISNUMBER(H175),$I$62*$D$51,0)*IF(D$51>0,1,0) -> 0
A176: ja
A177: =IF($D$12="Ja","Ja","Nej") -> Ja | C177: Cashflow søer
A178: =IF($D$12="Ja","Ja","Nej") -> Ja | C178: Terminer i halvår | D178: Investerings-summer | E178: EBID Cashflow | F178: Rente-omkostning | G178: Rest afdrag | H178: Gæld saldo | I178: Cash flow ½ årligt | J178: PB saldo 1000 kr. | K178: Dato
A179: Ja | B179: =IF(J179>=0,0,J179) -> 0 | C179: 0 | D179: =I77*-1 -> 0 | E179: 0 | F179: 0 | G179: 0 | H179: =D179 -> 0 | I179: =D179+E179 -> 0 | J179: =(H179+IF(C179<$I$56,$I$83,0))/1000 -> 0 | K179: =DATE(YEAR(D32),IF(MONTH(D32)<=6,1,7),1) -> 2023-07-01
A180: Ja | B180: =IF(J180>=0,0,J180) -> 0 | C180: =IF(AND(C179<>FALSE,C179+0.5<=$I$56),C179+0.5) -> 0.5 | D180: =(IF(ISNA(VLOOKUP(C180,$D$171:$E$175,2,FALSE)),0,VLOOKUP(C180,$D$171:$E$175,2,FALSE))+IF(ISNA(VLOOKUP(C180,$F$171:$G$175,2,FALSE)),0,VLOOKUP(C180,$F$171:$G$175,2,FALSE))+IF(ISNA(VLOOKUP(C180,$H$171:$I$175,2,FALSE)),0,VLOOKUP(C180,$H$171:$I$175,2,FALSE)))*-1+IF(C180=$I$56,$I$83,0) -> 0 | E180: =IF(C180<=$I$56,H$134*0.5,0) -> 0 | F180: =IF(C180<=$I$56,IF(H179<0,H179*$E$167*-1,0),0) -> 0 | G180: =IF(H179>=0,0,IF(E180-F180>H179*-1,H179*-1,E180-F180)) -> 0 | H180: =H179+D180+G180 -> 0 | I180: =D180+E180 -> 0 | J180: 0 | K180: =IF(MONTH(K179)+6>12,DATE(YEAR(K179)+1,MONTH(K179)+6-12,1),DATE(YEAR(K179),MONTH(K179)+6,1)) -> 2024-01-01
A181: Ja | B181: 0 | C181: 1 | D181: 0 | E181: 0 | F181: 0 | G181: 0 | H181: 0 | I181: =D181+E181 -> 0 | J181: 0 | K181: =IF(MONTH(K180)+6>12,DATE(YEAR(K180)+1,MONTH(K180)+6-12,1),DATE(YEAR(K180),MONTH(K180)+6,1)) -> 2024-07-01
A182: Ja | B182: 0 | C182: 1.5 | D182: 0 | E182: 0 | F182: 0 | G182: 0 | H182: 0 | I182: 0 | J182: 0 | K182: 2025-01-01
A183: Ja | B183: 0 | C183: 2 | D183: 0 | E183: 0 | F183: 0 | G183: 0 | H183: 0 | I183: 0 | J183: 0 | K183: 2025-07-01
A184: Ja | B184: 0 | C184: 2.5 | D184: 0 | E184: 0 | F184: 0 | G184: 0 | H184: 0 | I184: 0 | J184: 0 | K184: 2026-01-01
A185: Ja | B185: 0 | C185: 3 | D185: 0 | E185: 0 | F185: 0 | G185: 0 | H185: 0 | I185: 0 | J185: 0 | K185: 2026-07-01
A186: Ja | B186: 0 | C186: 3.5 | D186: 0 | E186: 0 | F186: 0 | G186: 0 | H186: 0 | I186: 0 | J186: 0 | K186: 2027-01-01
A187: Ja | B187: 0 | C187: 4 | D187: 0 | E187: 0 | F187: 0 | G187: 0 | H187: 0 | I187: 0 | J187: 0 | K187: 2027-07-01
A188: Ja | B188: 0 | C188: 4.5 | D188: 0 | E188: 0 | F188: 0 | G188: 0 | H188: 0 | I188: 0 | J188: 0 | K188: 2028-01-01
A189: Ja | B189: 0 | C189: 5 | D189: 0 | E189: 0 | F189: 0 | G189: 0 | H189: 0 | I189: 0 | J189: 0 | K189: 2028-07-01
A190: Ja | B190: 0 | C190: 5.5 | D190: 0 | E190: 0 | F190: 0 | G190: 0 | H190: 0 | I190: 0 | J190: 0 | K190: 2029-01-01
A191: Ja | B191: 0 | C191: 6 | D191: 0 | E191: 0 | F191: 0 | G191: 0 | H191: 0 | I191: 0 | J191: 0 | K191: 2029-07-01
A192: Ja | B192: 0 | C192: 6.5 | D192: 0 | E192: 0 | F192: 0 | G192: 0 | H192: 0 | I192: 0 | J192: 0 | K192: 2030-01-01
A193: Ja | B193: 0 | C193: 7 | D193: 0 | E193: 0 | F193: 0 | G193: 0 | H193: 0 | I193: 0 | J193: 0 | K193: 2030-07-01
A194: Ja | B194: 0 | C194: 7.5 | D194: 0 | E194: 0 | F194: 0 | G194: 0 | H194: 0 | I194: 0 | J194: 0 | K194: 2031-01-01
A195: Ja | B195: 0 | C195: 8 | D195: 0 | E195: 0 | F195: 0 | G195: 0 | H195: 0 | I195: 0 | J195: 0 | K195: 2031-07-01
A196: Ja | B196: 0 | C196: 8.5 | D196: 0 | E196: 0 | F196: 0 | G196: 0 | H196: 0 | I196: 0 | J196: 0 | K196: 2032-01-01
A197: Ja | B197: 0 | C197: 9 | D197: 0 | E197: 0 | F197: 0 | G197: 0 | H197: 0 | I197: 0 | J197: 0 | K197: 2032-07-01
A198: Ja | B198: 0 | C198: 9.5 | D198: 0 | E198: 0 | F198: 0 | G198: 0 | H198: 0 | I198: 0 | J198: 0 | K198: 2033-01-01
A199: Ja | B199: 0 | C199: 10 | D199: 0 | E199: 0 | F199: 0 | G199: 0 | H199: 0 | I199: 0 | J199: 0 | K199: 2033-07-01
A200: Ja | B200: 0 | C200: 10.5 | D200: 0 | E200: 0 | F200: 0 | G200: 0 | H200: 0 | I200: 0 | J200: 0 | K200: 2034-01-01
A201: Ja | B201: 0 | C201: 11 | D201: 0 | E201: 0 | F201: 0 | G201: 0 | H201: 0 | I201: 0 | J201: 0 | K201: 2034-07-01
A202: Ja | B202: 0 | C202: 11.5 | D202: 0 | E202: 0 | F202: 0 | G202: 0 | H202: 0 | I202: 0 | J202: 0 | K202: 2035-01-01
... 511 more rows

Sheet Smågrisepriser (hidden)
A1: Forbeholdt SEGES
A2: Fra notering til afregningspris beregnet notering
A3: Korrektion, kr/kg | B3: 0.06
A4: Efterbetaling NPV, kr/kg | B4: 1.3
A5: Korrektion til DC notering | B5: =SUM(B3:B4) -> 1.36
A6: Normtal slagtevægt | B6: 89
A7: Forventet langtidsprognose | B7: ='Investerings kalkule m. makro'!D23 -> 12.86 | C7: Følsomheds noteringsændring
A8: Finansieringssandel 7 kg | B8: 0.3289 | C8: =B8*B6 -> 29.2721 | D8: ="+/- kr/gris ved 7 kg" -> +/- kr/gris ved 7 kg
A9: Finansieringsandel 30 kg | B9: =1-50.51% -> 0.4949 | C9: =B6*B9 -> 44.0461 | D9: ="+/- kr/gris ved 30 kg" -> +/- kr/gris ved 30 kg
A10: Mindre efterbetaling søer | B10: =0.2 -> 0.2 | C10: kr/kg
A12: Sonotering er på langt sigt antaget at være 75 % af DC notering | B12: 0.75 | C12: =11.2*0.75 -> 8.4 | D12: =10.15*0.75 -> 7.6125 | E12: =12*0.75 -> 9
A13: Opdateret 2022-11-27 | G13: Indlagt
A14: Marginalpriser andre foderblandinger i forhold til | B14: Kr./fesv | C14: Prisforskel i forhold til slagtesvinefoder | E14: Kontrol | G14: -0.3 | H14: 0.3
A15: Pris per slagtesvinefoder, kr/fesv | B15: 2 | C15: 0 | E15: =B15+C$15 -> 2 | G15: =$E15+G$14 -> 1.7 | H15: =$E15+H$14 -> 2.3
A16: Sofoder | B16: =B$15+C16 -> 2.05 | C16: 0.05 | E16: =B16+C$15 -> 2.05 | G16: =$E16+G$14 -> 1.75 | H16: 2.35
A17: Smågrisefoder 1 | B17: =B$15+C17 -> 4.43 | C17: 2.43 | E17: 4.43 | G17: 4.13 | H17: 4.73
A18: Smågrise foder 2 | B18: =B$15+C18 -> 2.28 | C18: 0.28 | E18: 2.28 | G18: 1.98 | H18: 2.58
A19: Smågrisefoder vægtet | B19: =B$15+C19 -> 2.64 | C19: =0.57+0.07 -> 0.64 | E19: 2.64 | G19: 2.34 | H19: 2.94
A20: Kg regulering per kg under 7 kg | B20: 3
B21: Kr. kg slagtekrop | D21: Smågrisepriser nulpunkt | F21: Kg reguleringer nulpunkt
A22: Slagtesvinefoderpris, kr/fesv | B22: Afregningspris nulpunkt | C22: DC not. nulpunkt | D22: 7 kg | E22: 30 kg | F22: 7-9 kg | G22: 9-12 kg | H22: 12-25 kg | I22: 25-30 kg | J22: 30-40 kg
A23: =A24-0.3 -> 1.7 | B23: 11.38 | C23: =B23-$B$5 -> 10.02 | D23: 242.91 | E23: 420.68 | F23: 8.13 | G23: 13.63 | H23: 7.24 | I23: 5.3 | J23: 5.84 | M23: ok | N23: =D23+F23*2+3*G23+13*H23+5*I23 -> 420.68 | O23: =N23-E23 -> 0
A24: =B15 -> 2 | B24: 12.5 | C24: =B24-$B$5 -> 11.14 | D24: 258.28 | E24: 449.76 | F24: 9.7 | G24: 13.62 | H24: 7.84 | I24: 5.86 | J24: 6.57 | M24: ok | N24: =D24+F24*2+3*G24+13*H24+5*I24 -> 449.76 | O24: =N24-E24 -> 0
A25: =A24+0.3 -> 2.3 | B25: 13.62 | C25: =B25-$B$5 -> 12.26 | D25: 272.1 | E25: 476.7 | F25: 11.15 | G25: 13.64 | H25: 8.41 | I25: 6.41 | J25: 7.28 | M25: ok | N25: =D25+F25*2+3*G25+13*H25+5*I25 -> 476.7 | O25: =N25-E25 -> 0
A28: Beregnet smågrisenotering, priser nulpunktsnotering
A29: 7 kg smågrisepris | B29: =VLOOKUP(B15,A61:D231,4,FALSE) -> 258.28 | C29: Kr./gris
A30: 30 kg smågrisepris | B30: =VLOOKUP(B15,A61:E231,5,FALSE) -> 449.76 | C30: Kr./gris
A31: Nulpunkts notering gns | B31: =VLOOKUP(B15,A60:C231,3,FALSE) -> 11.14 | E31: Beregnet notering
A32: Kg regulering | B32: Fra kg | C32: Til kg | D32: Kr/kg | E32: Startpris | F32: Slutpris | H32: Kolonnenr
B33: 0 | C33: 7 | D33: =D34+B20 -> 12.7 | E33: =B29-7*D33 -> 169.38 | F33: =E34 -> 258.28
B34: =C33 -> 7 | C34: =B35 -> 9 | D34: =VLOOKUP($B$15,$A$60:$K$231,H34,FALSE) -> 9.7 | E34: =B29 -> 258.28 | F34: =E34+(C34-B34)*D34 -> 277.68 | H34: 7
B35: 9 | C35: 12 | D35: =VLOOKUP($B$15,$A$60:$K$231,H35,FALSE) -> 13.62 | E35: =F33 -> 258.28 | F35: 299.14 | H35: =H34+1 -> 8
B36: 12 | C36: 25 | D36: 7.84 | E36: =F35 -> 299.14 | F36: 401.06 | H36: =H35+1 -> 9
B37: 25 | C37: 30 | D37: 5.86 | E37: =F36 -> 401.06 | F37: 430.36 | H37: 10
B38: 30 | C38: 40 | D38: 6.57 | E38: =F37 -> 430.36 | F38: 496.06 | H38: 11
B39: 40 | C39: 130 | D39: =D38 -> 6.57 | E39: =F38 -> 496.06 | F39: 1087.36 | H39: 12
B40: 130 | C40: 1000 | D40: =D39 -> 6.57
A42: Tabel for smågrisenotering ved angivet notering og langsigtet foderprognose | G42: Kontrol
A43: Indlagt notering+ følsomhed | B43: ='Investerings kalkule m. makro'!D21+'Investerings kalkule m. makro'!D24 -> 11.5 | D43: Niveau | G43: =(B45-B30)-(B43-B31)*Normtal_slagtevægt*Finansieringsandel_30_kg -> 0
A44: 7 kg smågrisepris | B44: =B29+(B43-B31)*B6*B8 -> 268.817956 | C44: Kr./gris | D44: =(B44/B29) -> 1.040800511
A45: 30 kg smågrisepris | B45: =B30+(B43-B31)*B6*B9 -> 465.616596 | C45: Kr./gris | D45: =(B45/B30) -> 1.035255683
A46: Ændret niveau regulering | D46: =(B45-B44)/(B30-B29) -> 1.027776478 | E46: Beregnet notering
A47: Kg regulering | B47: Fra kg | C47: Til kg | D47: Kr/kg | E47: Startpris | F47: Slutpris
B48: =B33 -> 0 | C48: 7 | D48: =D33*$D$46 -> 13.05276127 | E48: =B44-7*D48 -> 177.4486271 | F48: =E49 -> 268.817956
B49: 7 | C49: 9 | D49: =D34*$D$46 -> 9.969431836 | E49: =B44 -> 268.817956 | F49: =E49+(C49-B49)*D48 -> 294.9234785
B50: 9 | C50: 12 | D50: 13.99831563 | E50: =F49 -> 294.9234785 | F50: =E50+(C50-B50)*D49 -> 324.831774
B51: 12 | C51: 25 | D51: 8.057767587 | E51: =F50 -> 324.831774 | F51: 506.8098772
B52: 25 | C52: 30 | D52: 6.022770161 | E52: =F51 -> 506.8098772 | F52: 547.0987152
B53: 30 | C53: 40 | D53: 6.75249146 | E53: =F52 -> 547.0987152 | F53: 607.3264168
B54: 40 | C54: 130 | D54: 6.75249146 | E54: =F53 -> 607.3264168 | F54: 1215.050648
B55: 130 | C55: 1000 | D55: 6.75249146
A60: Slagtesvine foder, kr. fesv | B60: Nulpunktsnotering | C60: =C22 -> DC not. nulpunkt | D60: =D22 -> 7 kg | E60: =E22 -> 30 kg | F60: 0-7 | G60: 7-9 kg | H60: 9-12 kg | I60: 12-25 kg | J60: 25-30 kg | K60: 30-40 kg | L60: Match
A61: =0.96+0.46 -> 1.42 | B61: =IF($A61<=$A$24,FORECAST($A61,B$23:B$24,$A$23:$A$24),FORECAST($A61,B$24:B$25,$A$24:$A$25)) -> 10.33466667 | C61: 8.974666667 | D61: 228.5646667 | E61: 393.5386667 | F61: =G61+B$20 -> 9.664666667 | G61: =IF($A61<=$A$24,FORECAST($A61,F$23:F$24,$A$23:$A$24),FORECAST($A61,F$24:F$25,$A$24:$A$25)) -> 6.664666667 | H61: 13.63933333 | I61: 6.68 | J61: 4.777333333 | K61: 5.158666667 | L61: 0
A62: =ROUND(A61+0.01,2) -> 1.43 | B62: 10.372 | C62: 9.012 | D62: 229.077 | E62: 394.508 | F62: =G62+B$20 -> 9.717 | G62: 6.717 | H62: 13.639 | I62: 6.7 | J62: 4.796 | K62: 5.183 | L62: 0
A63: =ROUND(A62+0.01,2) -> 1.44 | B63: 10.40933333 | C63: 9.049333333 | D63: 229.5893333 | E63: 395.4773333 | F63: 9.769333333 | G63: 6.769333333 | H63: 13.63866667 | I63: 6.72 | J63: 4.814666667 | K63: 5.207333333 | L63: 0
A64: 1.45 | B64: 10.44666667 | C64: 9.086666667 | D64: 230.1016667 | E64: 396.4466667 | F64: 9.821666667 | G64: 6.821666667 | H64: 13.63833333 | I64: 6.74 | J64: 4.833333333 | K64: 5.231666667 | L64: 0
A65: 1.46 | B65: 10.484 | C65: 9.124 | D65: 230.614 | E65: 397.416 | F65: 9.874 | G65: 6.874 | H65: 13.638 | I65: 6.76 | J65: 4.852 | K65: 5.256 | L65: 0
A66: 1.47 | B66: 10.52133333 | C66: 9.161333333 | D66: 231.1263333 | E66: 398.3853333 | F66: 9.926333333 | G66: 6.926333333 | H66: 13.63766667 | I66: 6.78 | J66: 4.870666667 | K66: 5.280333333 | L66: 0
A67: 1.48 | B67: 10.55866667 | C67: 9.198666667 | D67: 231.6386667 | E67: 399.3546667 | F67: 9.978666667 | G67: 6.978666667 | H67: 13.63733333 | I67: 6.8 | J67: 4.889333333 | K67: 5.304666667 | L67: 0
A68: 1.49 | B68: 10.596 | C68: 9.236 | D68: 232.151 | E68: 400.324 | F68: 10.031 | G68: 7.031 | H68: 13.637 | I68: 6.82 | J68: 4.908 | K68: 5.329 | L68: 0
A69: 1.5 | B69: 10.63333333 | C69: 9.273333333 | D69: 232.6633333 | E69: 401.2933333 | F69: 10.08333333 | G69: 7.083333333 | H69: 13.63666667 | I69: 6.84 | J69: 4.926666667 | K69: 5.353333333 | L69: 0
A70: 1.51 | B70: 10.67066667 | C70: 9.310666667 | D70: 233.1756667 | E70: 402.2626667 | F70: 10.13566667 | G70: 7.135666667 | H70: 13.63633333 | I70: 6.86 | J70: 4.945333333 | K70: 5.377666667 | L70: 0
A71: 1.52 | B71: =IF($A71<=$A$24,FORECAST($A71,B$23:B$24,$A$23:$A$24),FORECAST($A71,B$24:B$25,$A$24:$A$25)) -> 10.708 | C71: 9.348 | D71: 233.688 | E71: 403.232 | F71: 10.188 | G71: =IF($A71<=$A$24,FORECAST($A71,F$23:F$24,$A$23:$A$24),FORECAST($A71,F$24:F$25,$A$24:$A$25)) -> 7.188 | H71: 13.636 | I71: 6.88 | J71: 4.964 | K71: 5.402 | L71: 0
A72: 1.53 | B72: 10.74533333 | C72: 9.385333333 | D72: 234.2003333 | E72: 404.2013333 | F72: 10.24033333 | G72: 7.240333333 | H72: 13.63566667 | I72: 6.9 | J72: 4.982666667 | K72: 5.426333333 | L72: 0
A73: 1.54 | B73: 10.78266667 | C73: 9.422666667 | D73: 234.7126667 | E73: 405.1706667 | F73: 10.29266667 | G73: 7.292666667 | H73: 13.63533333 | I73: 6.92 | J73: 5.001333333 | K73: 5.450666667 | L73: 0
A74: 1.55 | B74: 10.82 | C74: 9.46 | D74: 235.225 | E74: 406.14 | F74: 10.345 | G74: 7.345 | H74: 13.635 | I74: 6.94 | J74: 5.02 | K74: 5.475 | L74: 0
A75: 1.56 | B75: 10.85733333 | C75: 9.497333333 | D75: 235.7373333 | E75: 407.1093333 | F75: 10.39733333 | G75: 7.397333333 | H75: 13.63466667 | I75: 6.96 | J75: 5.038666667 | K75: 5.499333333 | L75: 0
A76: 1.57 | B76: 10.89466667 | C76: 9.534666667 | D76: 236.2496667 | E76: 408.0786667 | F76: 10.44966667 | G76: 7.449666667 | H76: 13.63433333 | I76: 6.98 | J76: 5.057333333 | K76: 5.523666667 | L76: 0
A77: 1.58 | B77: 10.932 | C77: 9.572 | D77: 236.762 | E77: 409.048 | F77: 10.502 | G77: 7.502 | H77: 13.634 | I77: 7 | J77: 5.076 | K77: 5.548 | L77: 0
A78: 1.59 | B78: 10.96933333 | C78: 9.609333333 | D78: 237.2743333 | E78: 410.0173333 | F78: 10.55433333 | G78: 7.554333333 | H78: 13.63366667 | I78: 7.02 | J78: 5.094666667 | K78: 5.572333333 | L78: 0
A79: 1.6 | B79: 11.00666667 | C79: 9.646666667 | D79: 237.7866667 | E79: 410.9866667 | F79: 10.60666667 | G79: 7.606666667 | H79: 13.63333333 | I79: 7.04 | J79: 5.113333333 | K79: 5.596666667 | L79: 0
A80: 1.61 | B80: 11.044 | C80: 9.684 | D80: 238.299 | E80: 411.956 | F80: 10.659 | G80: 7.659 | H80: 13.633 | I80: 7.06 | J80: 5.132 | K80: 5.621 | L80: 0
A81: 1.62 | B81: =IF($A81<=$A$24,FORECAST($A81,B$23:B$24,$A$23:$A$24),FORECAST($A81,B$24:B$25,$A$24:$A$25)) -> 11.08133333 | C81: 9.721333333 | D81: 238.8113333 | E81: 412.9253333 | F81: 10.71133333 | G81: =IF($A81<=$A$24,FORECAST($A81,F$23:F$24,$A$23:$A$24),FORECAST($A81,F$24:F$25,$A$24:$A$25)) -> 7.711333333 | H81: 13.63266667 | I81: 7.08 | J81: 5.150666667 | K81: 5.645333333 | L81: 0
A82: 1.63 | B82: 11.11866667 | C82: 9.758666667 | D82: 239.3236667 | E82: 413.8946667 | F82: 10.76366667 | G82: 7.763666667 | H82: 13.63233333 | I82: 7.1 | J82: 5.169333333 | K82: 5.669666667 | L82: =0 -> 0
A83: 1.64 | B83: 11.156 | C83: 9.796 | D83: 239.836 | E83: 414.864 | F83: 10.816 | G83: 7.816 | H83: 13.632 | I83: 7.12 | J83: 5.188 | K83: 5.694 | L83: =0 -> 0
A84: 1.65 | B84: 11.19333333 | C84: 9.833333333 | D84: 240.3483333 | E84: 415.8333333 | F84: 10.86833333 | G84: 7.868333333 | H84: 13.63166667 | I84: 7.14 | J84: 5.206666667 | K84: 5.718333333 | L84: =0 -> 0
A85: 1.66 | B85: 11.23066667 | C85: 9.870666667 | D85: 240.8606667 | E85: 416.8026667 | F85: 10.92066667 | G85: 7.920666667 | H85: 13.63133333 | I85: 7.16 | J85: 5.225333333 | K85: 5.742666667 | L85: =0 -> 0
A86: 1.67 | B86: 11.268 | C86: 9.908 | D86: 241.373 | E86: 417.772 | F86: 10.973 | G86: 7.973 | H86: 13.631 | I86: 7.18 | J86: 5.244 | K86: 5.767 | L86: =0 -> 0
A87: 1.68 | B87: 11.30533333 | C87: 9.945333333 | D87: 241.8853333 | E87: 418.7413333 | F87: 11.02533333 | G87: 8.025333333 | H87: 13.63066667 | I87: 7.2 | J87: 5.262666667 | K87: 5.791333333 | L87: =0 -> 0
A88: 1.69 | B88: 11.34266667 | C88: 9.982666667 | D88: 242.3976667 | E88: 419.7106667 | F88: 11.07766667 | G88: 8.077666667 | H88: 13.63033333 | I88: 7.22 | J88: 5.281333333 | K88: 5.815666667 | L88: =0 -> 0
A89: 1.7 | B89: 11.38 | C89: 10.02 | D89: 242.91 | E89: 420.68 | F89: 11.13 | G89: 8.13 | H89: 13.63 | I89: 7.24 | J89: 5.3 | K89: 5.84 | L89: 1
A90: 1.71 | B90: 11.41733333 | C90: 10.05733333 | D90: 243.4223333 | E90: 421.6493333 | F90: 11.18233333 | G90: 8.182333333 | H90: 13.62966667 | I90: 7.26 | J90: 5.318666667 | K90: 5.864333333 | L90: =0 -> 0
A91: 1.72 | B91: =IF($A91<=$A$24,FORECAST($A91,B$23:B$24,$A$23:$A$24),FORECAST($A91,B$24:B$25,$A$24:$A$25)) -> 11.45466667 | C91: 10.09466667 | D91: 243.9346667 | E91: 422.6186667 | F91: 11.23466667 | G91: =IF($A91<=$A$24,FORECAST($A91,F$23:F$24,$A$23:$A$24),FORECAST($A91,F$24:F$25,$A$24:$A$25)) -> 8.234666667 | H91: 13.62933333 | I91: 7.28 | J91: 5.337333333 | K91: 5.888666667 | L91: =0 -> 0
A92: 1.73 | B92: 11.492 | C92: 10.132 | D92: 244.447 | E92: 423.588 | F92: 11.287 | G92: 8.287 | H92: 13.629 | I92: 7.3 | J92: 5.356 | K92: 5.913 | L92: =0 -> 0
A93: 1.74 | B93: 11.52933333 | C93: 10.16933333 | D93: 244.9593333 | E93: 424.5573333 | F93: 11.33933333 | G93: 8.339333333 | H93: 13.62866667 | I93: 7.32 | J93: 5.374666667 | K93: 5.937333333 | L93: =0 -> 0
A94: 1.75 | B94: 11.56666667 | C94: 10.20666667 | D94: 245.4716667 | E94: 425.5266667 | F94: 11.39166667 | G94: 8.391666667 | H94: 13.62833333 | I94: 7.34 | J94: 5.393333333 | K94: 5.961666667 | L94: =0 -> 0
A95: 1.76 | B95: 11.604 | C95: 10.244 | D95: 245.984 | E95: 426.496 | F95: 11.444 | G95: 8.444 | H95: 13.628 | I95: 7.36 | J95: 5.412 | K95: 5.986 | L95: =0 -> 0
A96: 1.77 | B96: 11.64133333 | C96: 10.28133333 | D96: 246.4963333 | E96: 427.4653333 | F96: 11.49633333 | G96: 8.496333333 | H96: 13.62766667 | I96: 7.38 | J96: 5.430666667 | K96: 6.010333333 | L96: =0 -> 0
A97: 1.78 | B97: 11.67866667 | C97: 10.31866667 | D97: 247.0086667 | E97: 428.4346667 | F97: 11.54866667 | G97: 8.548666667 | H97: 13.62733333 | I97: 7.4 | J97: 5.449333333 | K97: 6.034666667 | L97: =0 -> 0
A98: 1.79 | B98: 11.716 | C98: 10.356 | D98: 247.521 | E98: 429.404 | F98: 11.601 | G98: 8.601 | H98: 13.627 | I98: 7.42 | J98: 5.468 | K98: 6.059 | L98: =0 -> 0
A99: 1.8 | B99: 11.75333333 | C99: 10.39333333 | D99: 248.0333333 | E99: 430.3733333 | F99: 11.65333333 | G99: 8.653333333 | H99: 13.62666667 | I99: 7.44 | J99: 5.486666667 | K99: 6.083333333 | L99: =0 -> 0
A100: 1.81 | B100: 11.79066667 | C100: 10.43066667 | D100: 248.5456667 | E100: 431.3426667 | F100: 11.70566667 | G100: 8.705666667 | H100: 13.62633333 | I100: 7.46 | J100: 5.505333333 | K100: 6.107666667 | L100: =0 -> 0
A101: 1.82 | B101: =IF($A101<=$A$24,FORECAST($A101,B$23:B$24,$A$23:$A$24),FORECAST($A101,B$24:B$25,$A$24:$A$25)) -> 11.828 | C101: 10.468 | D101: 249.058 | E101: 432.312 | F101: 11.758 | G101: =IF($A101<=$A$24,FORECAST($A101,F$23:F$24,$A$23:$A$24),FORECAST($A101,F$24:F$25,$A$24:$A$25)) -> 8.758 | H101: 13.626 | I101: 7.48 | J101: 5.524 | K101: 6.132 | L101: =0 -> 0
A102: 1.83 | B102: 11.86533333 | C102: 10.50533333 | D102: 249.5703333 | E102: 433.2813333 | F102: 11.81033333 | G102: 8.810333333 | H102: 13.62566667 | I102: 7.5 | J102: 5.542666667 | K102: 6.156333333 | L102: =0 -> 0
A103: 1.84 | B103: 11.90266667 | C103: 10.54266667 | D103: 250.0826667 | E103: 434.2506667 | F103: 11.86266667 | G103: 8.862666667 | H103: 13.62533333 | I103: 7.52 | J103: 5.561333333 | K103: 6.180666667 | L103: =0 -> 0
A104: 1.85 | B104: 11.94 | C104: 10.58 | D104: 250.595 | E104: 435.22 | F104: 11.915 | G104: 8.915 | H104: 13.625 | I104: 7.54 | J104: 5.58 | K104: 6.205 | L104: =0 -> 0
A105: 1.86 | B105: 11.97733333 | C105: 10.61733333 | D105: 251.1073333 | E105: 436.1893333 | F105: 11.96733333 | G105: 8.967333333 | H105: 13.62466667 | I105: 7.56 | J105: 5.598666667 | K105: 6.229333333 | L105: =0 -> 0
A106: 1.87 | B106: 12.01466667 | C106: 10.65466667 | D106: 251.6196667 | E106: 437.1586667 | F106: 12.01966667 | G106: 9.019666667 | H106: 13.62433333 | I106: 7.58 | J106: 5.617333333 | K106: 6.253666667 | L106: =0 -> 0
A107: 1.88 | B107: 12.052 | C107: 10.692 | D107: 252.132 | E107: 438.128 | F107: 12.072 | G107: 9.072 | H107: 13.624 | I107: 7.6 | J107: 5.636 | K107: 6.278 | L107: =0 -> 0
A108: 1.89 | B108: 12.08933333 | C108: 10.72933333 | D108: 252.6443333 | E108: 439.0973333 | F108: 12.12433333 | G108: 9.124333333 | H108: 13.62366667 | I108: 7.62 | J108: 5.654666667 | K108: 6.302333333 | L108: =0 -> 0
A109: 1.9 | B109: 12.12666667 | C109: 10.76666667 | D109: 253.1566667 | E109: 440.0666667 | F109: 12.17666667 | G109: 9.176666667 | H109: 13.62333333 | I109: 7.64 | J109: 5.673333333 | K109: 6.326666667 | L109: =0 -> 0
A110: 1.91 | B110: 12.164 | C110: 10.804 | D110: 253.669 | E110: 441.036 | F110: 12.229 | G110: 9.229 | H110: 13.623 | I110: 7.66 | J110: 5.692 | K110: 6.351 | L110: =0 -> 0
A111: 1.92 | B111: =IF($A111<=$A$24,FORECAST($A111,B$23:B$24,$A$23:$A$24),FORECAST($A111,B$24:B$25,$A$24:$A$25)) -> 12.20133333 | C111: 10.84133333 | D111: 254.1813333 | E111: 442.0053333 | F111: 12.28133333 | G111: =IF($A111<=$A$24,FORECAST($A111,F$23:F$24,$A$23:$A$24),FORECAST($A111,F$24:F$25,$A$24:$A$25)) -> 9.281333333 | H111: 13.62266667 | I111: 7.68 | J111: 5.710666667 | K111: 6.375333333 | L111: =0 -> 0
A112: 1.93 | B112: 12.23866667 | C112: 10.87866667 | D112: 254.6936667 | E112: 442.9746667 | F112: 12.33366667 | G112: 9.333666667 | H112: 13.62233333 | I112: 7.7 | J112: 5.729333333 | K112: 6.399666667 | L112: =0 -> 0
A113: 1.94 | B113: 12.276 | C113: 10.916 | D113: 255.206 | E113: 443.944 | F113: 12.386 | G113: 9.386 | H113: 13.622 | I113: 7.72 | J113: 5.748 | K113: 6.424 | L113: =0 -> 0
A114: 1.95 | B114: 12.31333333 | C114: 10.95333333 | D114: 255.7183333 | E114: 444.9133333 | F114: 12.43833333 | G114: 9.438333333 | H114: 13.62166667 | I114: 7.74 | J114: 5.766666667 | K114: 6.448333333 | L114: =0 -> 0
A115: 1.96 | B115: 12.35066667 | C115: 10.99066667 | D115: 256.2306667 | E115: 445.8826667 | F115: 12.49066667 | G115: 9.490666667 | H115: 13.62133333 | I115: 7.76 | J115: 5.785333333 | K115: 6.472666667 | L115: =0 -> 0
A116: 1.97 | B116: 12.388 | C116: 11.028 | D116: 256.743 | E116: 446.852 | F116: 12.543 | G116: 9.543 | H116: 13.621 | I116: 7.78 | J116: 5.804 | K116: 6.497 | L116: =0 -> 0
A117: 1.98 | B117: 12.42533333 | C117: 11.06533333 | D117: 257.2553333 | E117: 447.8213333 | F117: 12.59533333 | G117: 9.595333333 | H117: 13.62066667 | I117: 7.8 | J117: 5.822666667 | K117: 6.521333333 | L117: =0 -> 0
A118: 1.99 | B118: 12.46266667 | C118: 11.10266667 | D118: 257.7676667 | E118: 448.7906667 | F118: 12.64766667 | G118: 9.647666667 | H118: 13.62033333 | I118: 7.82 | J118: 5.841333333 | K118: 6.545666667 | L118: =0 -> 0
A119: 2 | B119: 12.5 | C119: 11.14 | D119: 258.28 | E119: 449.76 | F119: 12.7 | G119: 9.7 | H119: 13.62 | I119: 7.84 | J119: 5.86 | K119: 6.57 | L119: 1
A120: 2.01 | B120: 12.53733333 | C120: 11.17733333 | D120: 258.7406667 | E120: 450.658 | F120: 12.74833333 | G120: 9.748333333 | H120: 13.62066667 | I120: 7.859 | J120: 5.878333333 | K120: 6.593666667 | L120: =0 -> 0
A121: 2.02 | B121: =IF($A121<=$A$24,FORECAST($A121,B$23:B$24,$A$23:$A$24),FORECAST($A121,B$24:B$25,$A$24:$A$25)) -> 12.57466667 | C121: 11.21466667 | D121: 259.2013333 | E121: 451.556 | F121: 12.79666667 | G121: =IF($A121<=$A$24,FORECAST($A121,F$23:F$24,$A$23:$A$24),FORECAST($A121,F$24:F$25,$A$24:$A$25)) -> 9.796666667 | H121: 13.62133333 | I121: 7.878 | J121: 5.896666667 | K121: 6.617333333 | L121: =0 -> 0
A122: 2.03 | B122: 12.612 | C122: 11.252 | D122: 259.662 | E122: 452.454 | F122: 12.845 | G122: 9.845 | H122: 13.622 | I122: 7.897 | J122: 5.915 | K122: 6.641 | L122: =0 -> 0
A123: 2.04 | B123: 12.64933333 | C123: 11.28933333 | D123: 260.1226667 | E123: 453.352 | F123: 12.89333333 | G123: 9.893333333 | H123: 13.62266667 | I123: 7.916 | J123: 5.933333333 | K123: 6.664666667 | L123: =0 -> 0
A124: 2.05 | B124: 12.68666667 | C124: 11.32666667 | D124: 260.5833333 | E124: 454.25 | F124: 12.94166667 | G124: 9.941666667 | H124: 13.62333333 | I124: 7.935 | J124: 5.951666667 | K124: 6.688333333 | L124: =0 -> 0
A125: 2.06 | B125: 12.724 | C125: 11.364 | D125: 261.044 | E125: 455.148 | F125: 12.99 | G125: 9.99 | H125: 13.624 | I125: 7.954 | J125: 5.97 | K125: 6.712 | L125: =0 -> 0
A126: 2.07 | B126: 12.76133333 | C126: 11.40133333 | D126: 261.5046667 | E126: 456.046 | F126: =G126+B$20 -> 13.03833333 | G126: 10.03833333 | H126: 13.62466667 | I126: 7.973 | J126: 5.988333333 | K126: 6.735666667 | L126: =0 -> 0
A127: =ROUND(A126+0.01,2) -> 2.08 | B127: 12.79866667 | C127: 11.43866667 | D127: 261.9653333 | E127: 456.944 | F127: 13.08666667 | G127: 10.08666667 | H127: 13.62533333 | I127: 7.992 | J127: 6.006666667 | K127: 6.759333333 | L127: =0 -> 0
A128: 2.09 | B128: 12.836 | C128: 11.476 | D128: 262.426 | E128: 457.842 | F128: 13.135 | G128: 10.135 | H128: 13.626 | I128: 8.011 | J128: 6.025 | K128: 6.783 | L128: =0 -> 0
A129: 2.1 | B129: 12.87333333 | C129: 11.51333333 | D129: 262.8866667 | E129: 458.74 | F129: 13.18333333 | G129: 10.18333333 | H129: 13.62666667 | I129: 8.03 | J129: 6.043333333 | K129: 6.806666667 | L129: =0 -> 0
A130: 2.11 | B130: 12.91066667 | C130: 11.55066667 | D130: 263.3473333 | E130: 459.638 | F130: 13.23166667 | G130: 10.23166667 | H130: 13.62733333 | I130: 8.049 | J130: 6.061666667 | K130: 6.830333333 | L130: =0 -> 0
A131: 2.12 | B131: =IF($A131<=$A$24,FORECAST($A131,B$23:B$24,$A$23:$A$24),FORECAST($A131,B$24:B$25,$A$24:$A$25)) -> 12.948 | C131: 11.588 | D131: 263.808 | E131: 460.536 | F131: 13.28 | G131: =IF($A131<=$A$24,FORECAST($A131,F$23:F$24,$A$23:$A$24),FORECAST($A131,F$24:F$25,$A$24:$A$25)) -> 10.28 | H131: 13.628 | I131: 8.068 | J131: 6.08 | K131: 6.854 | L131: 0
A132: 2.13 | B132: 12.98533333 | C132: 11.62533333 | D132: 264.2686667 | E132: 461.434 | F132: 13.32833333 | G132: 10.32833333 | H132: 13.62866667 | I132: 8.087 | J132: 6.098333333 | K132: 6.877666667 | L132: 0
A133: 2.14 | B133: 13.02266667 | C133: 11.66266667 | D133: 264.7293333 | E133: 462.332 | F133: 13.37666667 | G133: 10.37666667 | H133: 13.62933333 | I133: 8.106 | J133: 6.116666667 | K133: 6.901333333 | L133: 0
A134: 2.15 | B134: 13.06 | C134: 11.7 | D134: 265.19 | E134: 463.23 | F134: 13.425 | G134: 10.425 | H134: 13.63 | I134: 8.125 | J134: 6.135 | K134: 6.925 | L134: 0
A135: 2.16 | B135: 13.09733333 | C135: 11.73733333 | D135: 265.6506667 | E135: 464.128 | F135: 13.47333333 | G135: 10.47333333 | H135: 13.63066667 | I135: 8.144 | J135: 6.153333333 | K135: 6.948666667 | L135: 0
A136: 2.17 | B136: 13.13466667 | C136: 11.77466667 | D136: 266.1113333 | E136: 465.026 | F136: 13.52166667 | G136: 10.52166667 | H136: 13.63133333 | I136: 8.163 | J136: 6.171666667 | K136: 6.972333333 | L136: 0
A137: 2.18 | B137: 13.172 | C137: 11.812 | D137: 266.572 | E137: 465.924 | F137: 13.57 | G137: 10.57 | H137: 13.632 | I137: 8.182 | J137: 6.19 | K137: 6.996 | L137: 0
A138: 2.19 | B138: 13.20933333 | C138: 11.84933333 | D138: 267.0326667 | E138: 466.822 | F138: 13.61833333 | G138: 10.61833333 | H138: 13.63266667 | I138: 8.201 | J138: 6.208333333 | K138: 7.019666667 | L138: 0
A139: 2.2 | B139: 13.24666667 | C139: 11.88666667 | D139: 267.4933333 | E139: 467.72 | F139: 13.66666667 | G139: 10.66666667 | H139: 13.63333333 | I139: 8.22 | J139: 6.226666667 | K139: 7.043333333 | L139: 0
A140: 2.21 | B140: 13.284 | C140: 11.924 | D140: 267.954 | E140: 468.618 | F140: 13.715 | G140: 10.715 | H140: 13.634 | I140: 8.239 | J140: 6.245 | K140: 7.067 | L140: 0
A141: 2.22 | B141: =IF($A141<=$A$24,FORECAST($A141,B$23:B$24,$A$23:$A$24),FORECAST($A141,B$24:B$25,$A$24:$A$25)) -> 13.32133333 | C141: 11.96133333 | D141: 268.4146667 | E141: 469.516 | F141: 13.76333333 | G141: =IF($A141<=$A$24,FORECAST($A141,F$23:F$24,$A$23:$A$24),FORECAST($A141,F$24:F$25,$A$24:$A$25)) -> 10.76333333 | H141: 13.63466667 | I141: 8.258 | J141: 6.263333333 | K141: 7.090666667 | L141: 0
A142: 2.23 | B142: 13.35866667 | C142: 11.99866667 | D142: 268.8753333 | E142: 470.414 | F142: 13.81166667 | G142: 10.81166667 | H142: 13.63533333 | I142: 8.277 | J142: 6.281666667 | K142: 7.114333333 | L142: 0
A143: 2.24 | B143: 13.396 | C143: 12.036 | D143: 269.336 | E143: 471.312 | F143: 13.86 | G143: 10.86 | H143: 13.636 | I143: 8.296 | J143: 6.3 | K143: 7.138 | L143: 0
A144: 2.25 | B144: 13.43333333 | C144: 12.07333333 | D144: 269.7966667 | E144: 472.21 | F144: 13.90833333 | G144: 10.90833333 | H144: 13.63666667 | I144: 8.315 | J144: 6.318333333 | K144: 7.161666667 | L144: 0
A145: 2.26 | B145: 13.47066667 | C145: 12.11066667 | D145: 270.2573333 | E145: 473.108 | F145: 13.95666667 | G145: 10.95666667 | H145: 13.63733333 | I145: 8.334 | J145: 6.336666667 | K145: 7.185333333 | L145: 0
A146: 2.27 | B146: 13.508 | C146: 12.148 | D146: 270.718 | E146: 474.006 | F146: 14.005 | G146: 11.005 | H146: 13.638 | I146: 8.353 | J146: 6.355 | K146: 7.209 | L146: 0
A147: 2.28 | B147: 13.54533333 | C147: 12.18533333 | D147: 271.1786667 | E147: 474.904 | F147: 14.05333333 | G147: 11.05333333 | H147: 13.63866667 | I147: 8.372 | J147: 6.373333333 | K147: 7.232666667 | L147: 0
A148: 2.29 | B148: 13.58266667 | C148: 12.22266667 | D148: 271.6393333 | E148: 475.802 | F148: 14.10166667 | G148: 11.10166667 | H148: 13.63933333 | I148: 8.391 | J148: 6.391666667 | K148: 7.256333333 | L148: 0
A149: 2.3 | B149: 13.62 | C149: 12.26 | D149: 272.1 | E149: 476.7 | F149: 14.15 | G149: 11.15 | H149: 13.64 | I149: 8.41 | J149: 6.41 | K149: 7.28 | L149: 1
A150: 2.31 | B150: 13.65733333 | C150: 12.29733333 | D150: 272.5606667 | E150: 477.598 | F150: 14.19833333 | G150: 11.19833333 | H150: 13.64066667 | I150: 8.429 | J150: 6.428333333 | K150: 7.303666667 | L150: 0
A151: 2.32 | B151: =IF($A151<=$A$24,FORECAST($A151,B$23:B$24,$A$23:$A$24),FORECAST($A151,B$24:B$25,$A$24:$A$25)) -> 13.69466667 | C151: 12.33466667 | D151: 273.0213333 | E151: 478.496 | F151: 14.24666667 | G151: =IF($A151<=$A$24,FORECAST($A151,F$23:F$24,$A$23:$A$24),FORECAST($A151,F$24:F$25,$A$24:$A$25)) -> 11.24666667 | H151: 13.64133333 | I151: 8.448 | J151: 6.446666667 | K151: 7.327333333 | L151: 0
A152: 2.33 | B152: 13.732 | C152: 12.372 | D152: 273.482 | E152: 479.394 | F152: 14.295 | G152: 11.295 | H152: 13.642 | I152: 8.467 | J152: 6.465 | K152: 7.351 | L152: 0
A153: 2.34 | B153: 13.76933333 | C153: 12.40933333 | D153: 273.9426667 | E153: 480.292 | F153: 14.34333333 | G153: 11.34333333 | H153: 13.64266667 | I153: 8.486 | J153: 6.483333333 | K153: 7.374666667 | L153: 0
A154: 2.35 | B154: 13.80666667 | C154: 12.44666667 | D154: 274.4033333 | E154: 481.19 | F154: 14.39166667 | G154: 11.39166667 | H154: 13.64333333 | I154: 8.505 | J154: 6.501666667 | K154: 7.398333333 | L154: 0
A155: 2.36 | B155: 13.844 | C155: 12.484 | D155: 274.864 | E155: 482.088 | F155: 14.44 | G155: 11.44 | H155: 13.644 | I155: 8.524 | J155: 6.52 | K155: 7.422 | L155: 0
A156: 2.37 | B156: 13.88133333 | C156: 12.52133333 | D156: 275.3246667 | E156: 482.986 | F156: 14.48833333 | G156: 11.48833333 | H156: 13.64466667 | I156: 8.543 | J156: 6.538333333 | K156: 7.445666667 | L156: 0
A157: 2.38 | B157: 13.91866667 | C157: 12.55866667 | D157: 275.7853333 | E157: 483.884 | F157: 14.53666667 | G157: 11.53666667 | H157: 13.64533333 | I157: 8.562 | J157: 6.556666667 | K157: 7.469333333 | L157: 0
A158: 2.39 | B158: 13.956 | C158: 12.596 | D158: 276.246 | E158: 484.782 | F158: 14.585 | G158: 11.585 | H158: 13.646 | I158: 8.581 | J158: 6.575 | K158: 7.493 | L158: 0
A159: 2.4 | B159: 13.99333333 | C159: 12.63333333 | D159: 276.7066667 | E159: 485.68 | F159: 14.63333333 | G159: 11.63333333 | H159: 13.64666667 | I159: 8.6 | J159: 6.593333333 | K159: 7.516666667 | L159: 0
A160: 2.41 | B160: 14.03066667 | C160: 12.67066667 | D160: 277.1673333 | E160: 486.578 | F160: 14.68166667 | G160: 11.68166667 | H160: 13.64733333 | I160: 8.619 | J160: 6.611666667 | K160: 7.540333333 | L160: 0
A161: 2.42 | B161: =IF($A161<=$A$24,FORECAST($A161,B$23:B$24,$A$23:$A$24),FORECAST($A161,B$24:B$25,$A$24:$A$25)) -> 14.068 | C161: 12.708 | D161: 277.628 | E161: 487.476 | F161: 14.73 | G161: =IF($A161<=$A$24,FORECAST($A161,F$23:F$24,$A$23:$A$24),FORECAST($A161,F$24:F$25,$A$24:$A$25)) -> 11.73 | H161: 13.648 | I161: 8.638 | J161: 6.63 | K161: 7.564 | L161: 0
A162: 2.43 | B162: 14.10533333 | C162: 12.74533333 | D162: 278.0886667 | E162: 488.374 | F162: 14.77833333 | G162: 11.77833333 | H162: 13.64866667 | I162: 8.657 | J162: 6.648333333 | K162: 7.587666667 | L162: 0
A163: 2.44 | B163: 14.14266667 | C163: 12.78266667 | D163: 278.5493333 | E163: 489.272 | F163: 14.82666667 | G163: 11.82666667 | H163: 13.64933333 | I163: 8.676 | J163: 6.666666667 | K163: 7.611333333 | L163: 0
A164: 2.45 | B164: 14.18 | C164: 12.82 | D164: 279.01 | E164: 490.17 | F164: 14.875 | G164: 11.875 | H164: 13.65 | I164: 8.695 | J164: 6.685 | K164: 7.635 | L164: 0
A165: 2.46 | B165: 14.21733333 | C165: 12.85733333 | D165: 279.4706667 | E165: 491.068 | F165: 14.92333333 | G165: 11.92333333 | H165: 13.65066667 | I165: 8.714 | J165: 6.703333333 | K165: 7.658666667 | L165: 0
A166: 2.47 | B166: 14.25466667 | C166: 12.89466667 | D166: 279.9313333 | E166: 491.966 | F166: 14.97166667 | G166: 11.97166667 | H166: 13.65133333 | I166: 8.733 | J166: 6.721666667 | K166: 7.682333333 | L166: 0
A167: 2.48 | B167: 14.292 | C167: 12.932 | D167: 280.392 | E167: 492.864 | F167: 15.02 | G167: 12.02 | H167: 13.652 | I167: 8.752 | J167: 6.74 | K167: 7.706 | L167: 0
A168: 2.49 | B168: 14.32933333 | C168: 12.96933333 | D168: 280.8526667 | E168: 493.762 | F168: 15.06833333 | G168: 12.06833333 | H168: 13.65266667 | I168: 8.771 | J168: 6.758333333 | K168: 7.729666667 | L168: 0
A169: 2.5 | B169: 14.36666667 | C169: 13.00666667 | D169: 281.3133333 | E169: 494.66 | F169: 15.11666667 | G169: 12.11666667 | H169: 13.65333333 | I169: 8.79 | J169: 6.776666667 | K169: 7.753333333 | L169: 0
A170: 2.51 | B170: 14.404 | C170: 13.044 | D170: 281.774 | E170: 495.558 | F170: 15.165 | G170: 12.165 | H170: 13.654 | I170: 8.809 | J170: 6.795 | K170: 7.777 | L170: 0
A171: 2.52 | B171: =IF($A171<=$A$24,FORECAST($A171,B$23:B$24,$A$23:$A$24),FORECAST($A171,B$24:B$25,$A$24:$A$25)) -> 14.44133333 | C171: 13.08133333 | D171: 282.2346667 | E171: 496.456 | F171: 15.21333333 | G171: =IF($A171<=$A$24,FORECAST($A171,F$23:F$24,$A$23:$A$24),FORECAST($A171,F$24:F$25,$A$24:$A$25)) -> 12.21333333 | H171: 13.65466667 | I171: 8.828 | J171: 6.813333333 | K171: 7.800666667 | L171: 0
A172: 2.53 | B172: 14.47866667 | C172: 13.11866667 | D172: 282.6953333 | E172: 497.354 | F172: 15.26166667 | G172: 12.26166667 | H172: 13.65533333 | I172: 8.847 | J172: 6.831666667 | K172: 7.824333333 | L172: 0
A173: 2.54 | B173: 14.516 | C173: 13.156 | D173: 283.156 | E173: 498.252 | F173: 15.31 | G173: 12.31 | H173: 13.656 | I173: 8.866 | J173: 6.85 | K173: 7.848 | L173: 0
A174: 2.55 | B174: 14.55333333 | C174: 13.19333333 | D174: 283.6166667 | E174: 499.15 | F174: 15.35833333 | G174: 12.35833333 | H174: 13.65666667 | I174: 8.885 | J174: 6.868333333 | K174: 7.871666667 | L174: 0
A175: 2.56 | B175: 14.59066667 | C175: 13.23066667 | D175: 284.0773333 | E175: 500.048 | F175: 15.40666667 | G175: 12.40666667 | H175: 13.65733333 | I175: 8.904 | J175: 6.886666667 | K175: 7.895333333 | L175: 0
A176: 2.57 | B176: 14.628 | C176: 13.268 | D176: 284.538 | E176: 500.946 | F176: 15.455 | G176: 12.455 | H176: 13.658 | I176: 8.923 | J176: 6.905 | K176: 7.919 | L176: 0
A177: 2.58 | B177: 14.66533333 | C177: 13.30533333 | D177: 284.9986667 | E177: 501.844 | F177: 15.50333333 | G177: 12.50333333 | H177: 13.65866667 | I177: 8.942 | J177: 6.923333333 | K177: 7.942666667 | L177: 0
A178: 2.59 | B178: 14.70266667 | C178: 13.34266667 | D178: 285.4593333 | E178: 502.742 | F178: 15.55166667 | G178: 12.55166667 | H178: 13.65933333 | I178: 8.961 | J178: 6.941666667 | K178: 7.966333333 | L178: 0
A179: 2.6 | B179: 14.74 | C179: 13.38 | D179: 285.92 | E179: 503.64 | F179: 15.6 | G179: 12.6 | H179: 13.66 | I179: 8.98 | J179: 6.96 | K179: 7.99 | L179: 0
A180: 2.61 | B180: 14.77733333 | C180: 13.41733333 | D180: 286.3806667 | E180: 504.538 | F180: 15.64833333 | G180: 12.64833333 | H180: 13.66066667 | I180: 8.999 | J180: 6.978333333 | K180: 8.013666667 | L180: 0
A181: 2.62 | B181: =IF($A181<=$A$24,FORECAST($A181,B$23:B$24,$A$23:$A$24),FORECAST($A181,B$24:B$25,$A$24:$A$25)) -> 14.81466667 | C181: 13.45466667 | D181: 286.8413333 | E181: 505.436 | F181: 15.69666667 | G181: =IF($A181<=$A$24,FORECAST($A181,F$23:F$24,$A$23:$A$24),FORECAST($A181,F$24:F$25,$A$24:$A$25)) -> 12.69666667 | H181: 13.66133333 | I181: 9.018 | J181: 6.996666667 | K181: 8.037333333 | L181: 0
A182: 2.63 | B182: 14.852 | C182: 13.492 | D182: 287.302 | E182: 506.334 | F182: 15.745 | G182: 12.745 | H182: 13.662 | I182: 9.037 | J182: 7.015 | K182: 8.061 | L182: 0
A183: 2.64 | B183: 14.88933333 | C183: 13.52933333 | D183: 287.7626667 | E183: 507.232 | F183: 15.79333333 | G183: 12.79333333 | H183: 13.66266667 | I183: 9.056 | J183: 7.033333333 | K183: 8.084666667 | L183: 0
A184: 2.65 | B184: 14.92666667 | C184: 13.56666667 | D184: 288.2233333 | E184: 508.13 | F184: 15.84166667 | G184: 12.84166667 | H184: 13.66333333 | I184: 9.075 | J184: 7.051666667 | K184: 8.108333333 | L184: 0
A185: 2.66 | B185: 14.964 | C185: 13.604 | D185: 288.684 | E185: 509.028 | F185: 15.89 | G185: 12.89 | H185: 13.664 | I185: 9.094 | J185: 7.07 | K185: 8.132 | L185: 0
A186: 2.67 | B186: 15.00133333 | C186: 13.64133333 | D186: 289.1446667 | E186: 509.926 | F186: 15.93833333 | G186: 12.93833333 | H186: 13.66466667 | I186: 9.113 | J186: 7.088333333 | K186: 8.155666667 | L186: 0
A187: 2.68 | B187: 15.03866667 | C187: 13.67866667 | D187: 289.6053333 | E187: 510.824 | F187: 15.98666667 | G187: 12.98666667 | H187: 13.66533333 | I187: 9.132 | J187: 7.106666667 | K187: 8.179333333 | L187: 0
A188: 2.69 | B188: 15.076 | C188: 13.716 | D188: 290.066 | E188: 511.722 | F188: 16.035 | G188: 13.035 | H188: 13.666 | I188: 9.151 | J188: 7.125 | K188: 8.203 | L188: 0
A189: 2.7 | B189: 15.11333333 | C189: 13.75333333 | D189: 290.5266667 | E189: 512.62 | F189: 16.08333333 | G189: 13.08333333 | H189: 13.66666667 | I189: 9.17 | J189: 7.143333333 | K189: 8.226666667 | L189: 0
A190: 2.71 | B190: 15.15066667 | C190: 13.79066667 | D190: 290.9873333 | E190: 513.518 | F190: =G190+B$20 -> 16.13166667 | G190: 13.13166667 | H190: 13.66733333 | I190: 9.189 | J190: 7.161666667 | K190: 8.250333333 | L190: 0
A191: =ROUND(A190+0.01,2) -> 2.72 | B191: =IF($A191<=$A$24,FORECAST($A191,B$23:B$24,$A$23:$A$24),FORECAST($A191,B$24:B$25,$A$24:$A$25)) -> 15.188 | C191: 13.828 | D191: 291.448 | E191: 514.416 | F191: 16.18 | G191: =IF($A191<=$A$24,FORECAST($A191,F$23:F$24,$A$23:$A$24),FORECAST($A191,F$24:F$25,$A$24:$A$25)) -> 13.18 | H191: 13.668 | I191: 9.208 | J191: 7.18 | K191: 8.274 | L191: 0
A192: 2.73 | B192: 15.22533333 | C192: 13.86533333 | D192: 291.9086667 | E192: 515.314 | F192: 16.22833333 | G192: 13.22833333 | H192: 13.66866667 | I192: 9.227 | J192: 7.198333333 | K192: 8.297666667 | L192: 0
A193: 2.74 | B193: 15.26266667 | C193: 13.90266667 | D193: 292.3693333 | E193: 516.212 | F193: 16.27666667 | G193: 13.27666667 | H193: 13.66933333 | I193: 9.246 | J193: 7.216666667 | K193: 8.321333333 | L193: 0
A194: 2.75 | B194: 15.3 | C194: 13.94 | D194: 292.83 | E194: 517.11 | F194: 16.325 | G194: 13.325 | H194: 13.67 | I194: 9.265 | J194: 7.235 | K194: 8.345 | L194: 0
A195: 2.76 | B195: 15.33733333 | C195: 13.97733333 | D195: 293.2906667 | E195: 518.008 | F195: 16.37333333 | G195: 13.37333333 | H195: 13.67066667 | I195: 9.284 | J195: 7.253333333 | K195: 8.368666667 | L195: 0
A196: 2.77 | B196: 15.37466667 | C196: 14.01466667 | D196: 293.7513333 | E196: 518.906 | F196: 16.42166667 | G196: 13.42166667 | H196: 13.67133333 | I196: 9.303 | J196: 7.271666667 | K196: 8.392333333 | L196: 0
A197: 2.78 | B197: 15.412 | C197: 14.052 | D197: 294.212 | E197: 519.804 | F197: 16.47 | G197: 13.47 | H197: 13.672 | I197: 9.322 | J197: 7.29 | K197: 8.416 | L197: 0
A198: 2.79 | B198: 15.44933333 | C198: 14.08933333 | D198: 294.6726667 | E198: 520.702 | F198: 16.51833333 | G198: 13.51833333 | H198: 13.67266667 | I198: 9.341 | J198: 7.308333333 | K198: 8.439666667 | L198: 0
A199: 2.8 | B199: 15.48666667 | C199: 14.12666667 | D199: 295.1333333 | E199: 521.6 | F199: 16.56666667 | G199: 13.56666667 | H199: 13.67333333 | I199: 9.36 | J199: 7.326666667 | K199: 8.463333333 | L199: 0
A200: 2.81 | B200: 15.524 | C200: 14.164 | D200: 295.594 | E200: 522.498 | F200: 16.615 | G200: 13.615 | H200: 13.674 | I200: 9.379 | J200: 7.345 | K200: 8.487 | L200: 0
A201: 2.82 | B201: =IF($A201<=$A$24,FORECAST($A201,B$23:B$24,$A$23:$A$24),FORECAST($A201,B$24:B$25,$A$24:$A$25)) -> 15.56133333 | C201: 14.20133333 | D201: 296.0546667 | E201: 523.396 | F201: 16.66333333 | G201: =IF($A201<=$A$24,FORECAST($A201,F$23:F$24,$A$23:$A$24),FORECAST($A201,F$24:F$25,$A$24:$A$25)) -> 13.66333333 | H201: 13.67466667 | I201: 9.398 | J201: 7.363333333 | K201: 8.510666667 | L201: 0
A202: 2.83 | B202: 15.59866667 | C202: 14.23866667 | D202: 296.5153333 | E202: 524.294 | F202: 16.71166667 | G202: 13.71166667 | H202: 13.67533333 | I202: 9.417 | J202: 7.381666667 | K202: 8.534333333 | L202: 0
A203: 2.84 | B203: 15.636 | C203: 14.276 | D203: 296.976 | E203: 525.192 | F203: 16.76 | G203: 13.76 | H203: 13.676 | I203: 9.436 | J203: 7.4 | K203: 8.558 | L203: 0
A204: 2.85 | B204: 15.67333333 | C204: 14.31333333 | D204: 297.4366667 | E204: 526.09 | F204: 16.80833333 | G204: 13.80833333 | H204: 13.67666667 | I204: 9.455 | J204: 7.418333333 | K204: 8.581666667 | L204: 0
A205: 2.86 | B205: 15.71066667 | C205: 14.35066667 | D205: 297.8973333 | E205: 526.988 | F205: 16.85666667 | G205: 13.85666667 | H205: 13.67733333 | I205: 9.474 | J205: 7.436666667 | K205: 8.605333333 | L205: 0
A206: 2.87 | B206: 15.748 | C206: 14.388 | D206: 298.358 | E206: 527.886 | F206: 16.905 | G206: 13.905 | H206: 13.678 | I206: 9.493 | J206: 7.455 | K206: 8.629 | L206: 0
A207: 2.88 | B207: 15.78533333 | C207: 14.42533333 | D207: 298.8186667 | E207: 528.784 | F207: 16.95333333 | G207: 13.95333333 | H207: 13.67866667 | I207: 9.512 | J207: 7.473333333 | K207: 8.652666667 | L207: 0
A208: 2.89 | B208: 15.82266667 | C208: 14.46266667 | D208: 299.2793333 | E208: 529.682 | F208: 17.00166667 | G208: 14.00166667 | H208: 13.67933333 | I208: 9.531 | J208: 7.491666667 | K208: 8.676333333 | L208: 0
... 23 more rows
